Workbook

Sheet modList01 (hidden)

Sheet Инструкция
AA1: (требуется обновление)
B2: ="Код шаблона: " & GetCode() -> Код шаблона: JKH.OPEN.INFO.BALANCE.WARM
B3: ="Версия " & GetVersion() -> Версия 6.0.1
B5: Показатели, подлежащие раскрытию теплоснабжающими, теплосетевыми организациями
E7: • На рабочем месте должен быть установлен MS Office 2003 SP3, 2007 SP3, 2010 с полной версией MS Excel • Макросы во время работы должны быть включены (!) • Для корректной работы отчёта требуется выбрать низкий уровень безопасности (В меню MS Excel 2003: Сервис | Макрос | Безопасность | выбрать пункт «Низкая безопасность» | OK) (В меню MS Excel 2007/2010: Параметры Excel | Центр управления безопасностью | Параметры центра управления безопасностью | Параметры макросов | Включить все макросы | ОК) • Если Вы работаете в табличном процессоре MS Excel 2007 и выше, то можете использовать для работы формат XLSM (Книга Excel с поддержкой макросов). При работе в формате XLSM заметно быстрее происходит сохранение файла, а также уменьшается размер по сравнению с форматом XLS • Не рекомендуется снимать защиту с листов и каким-либо образом модифицировать защищаемые формулы и расчётные поля, в противном случае, отчёт будет отклонён системой • При сохранении не следует выбирать формат XLSX (Книга Excel), так как в указанном формате макросы, необходимые для работы отчёта, безвозвратно удаляются
E21: A | F21: - необязательные для заполнения | O21: A | P21: - с формулами и константами
E22: A | F22: - обязательные для заполнения | O22: A | P22: - с выбором значений до двойному клику,
P23: либо с возможностью выбора даты из календаря или ручного ввода
E35: Если в предложенном Вам списке необходимая организация, МР/МО отсутствуют, обновите реестры с помощью кнопок В результате синхронизации с базой данных список организаций (МР/МО) будет заменён актуальным (механизм синхронизации требует подключения к сети Интернет и основан на использовании протокола HTTPS (TCP порт 443)) Если после обновления Вам не удалось найти необходимую организацию в списке, обратитесь к ответственному за поддержание реестра Вашего региона. Информация о региональных органах регулирования доступна по ссылке:
E40: http://www.fstrf.ru/regions/region/showlist
E46: • При сохранении шаблона осуществляется проверка корректности данных, в том числе на наличие значений в ячейках, обязательных для заполнения • Если какая-то ячейка не удовлетворяет условию проверки, на лист «Проверка» добавляется гиперссылка на данную ячейку и указывается причина ошибки • В колонке «Статус» для каждого сообщения возможны 2 значения: ошибка и предупреждение • При наличии сообщений со статусом «Ошибка» шаблон будет отклонён системой и не будет загружен в хранилище данных, сообщения со статусом «Предупреждение» носят информационный характер, и такой шаблон будет принят системой
E58: Web-сайт: | H58: http://support.eias.ru/index.php?a=add&catid=5
E59: Дистрибутивы: | H59: http://eias.ru/?page=show_distrs
H60: для устранения ошибок (например, "Compile error in hidden module")
E70: Принципы работы с шаблоном
E71: Перед началом работы с шаблоном Вам необходимо нажать кнопку "Приступить к заполнению", после чего на форме выбора выбрать из выпадающего списка нужный субъект РФ. После выбора субъекта РФ в шаблоне отобразятся листы для заполнения.
E72: На листе «Титульный» нужно заполнить все ячейки голубого и синего цвета. Для создания печатной формы нажмите на иконку принтера на листе «Титульный» (левый верхний угол).
E73: Гиперссылки на листах вводите, не нарушая цвет ячейки (если копируете гиперссылку из браузера, то выполните двойной щелчок левой кнопки мыши по ячейке и только после этого можете вставить скопированный элемент).
E74: При вводе даты на расчетных листах необходимо выбрать дату из календаря (иконка справа от выбранной ячейки), либо ввести дату непосредственно в ячейку в формате - 'ДД.ММ.ГГГГ'.
E75: Если какой-либо из показателей на расчетных листах для Вашей организации отсутствует, введите в поле, обязательное для заполнение, «0» (для числовых показателей) и «-» (для текстовых).
E76: Внимательно следите за информационными сообщениями на расчетных листах.
E77: Все необходимые комментарии по всем формам Вы можете отразить на листе «Комментарии».
E79: Обосновывающие материалы (документы) необходимо загружать с помощью "ЕИАС Мониторинг"
E80: Инструкция | I80: http://eias.ru/files/shablon/manual_loading_through_monitoring.pdf
E82: E-mail: | H82: openinfo@eias.ru
E83: Web-сайт: | H83: http://eias.ru/?page=show_templates
E98: При наличии подключения к Интернет, можно автоматически проверять наличие доступных обновлений. Выберите способ оповещения о наличии обновлений для отчёта:
F100: проверять доступные обновления (рекомендуется) | AA100: y
F102: никогда не проверять наличие обновлений (не рекомендуется)

Sheet Лог обновления (hidden)
A1: Дата/Время | B1: Сообщение | C1: Статус
A3: 2014-01-15T10:40:00 | B3: Проверка доступных обновлений... | C3: Информация
A4: 2014-01-15T10:40:01 | B4: Версия шаблона 6.0 актуальна, обновление не требуется | C4: Информация
A5: 2014-04-11T11:39:45 | B5: Проверка доступных обновлений... | C5: Информация
A6: 2014-04-11T11:39:45 | B6: Доступно обновление до версии 6.0.1 | C6: Информация
A7: 2014-04-11T11:39:45 | B7: Описание изменений: Версия 6.0.1 (только(!!!) для шаблонов версии 6.0) 1. корректировка наименования п.4 (новое значение - "Сведения об изменении стоимости основных фондов (в том числе за счет их ввода в эксплуатацию (вывода из эксплуатации)), их переоценки") листа "Показатели (факт)", 2. корректировка п.5, п.5.1 в части возможности ввода отрицательных значений, 3. увеличение списка видов деятельности на листе "Титульный". Если версия Вашего шаблона ниже 6.0, обратитесь к администратору Вашего субъекта РФ. | C7: Информация
A8: 2014-04-11T11:39:45 | B8: Размер файла обновления: 282624 байт | C8: Информация
A9: 2014-04-11T11:39:49 | B9: Подготовка к обновлению... | C9: Информация
A10: 2014-04-11T11:39:55 | B10: Сохранение файла резервной копии: C:\Users\borinskih\Desktop\Запросы через ЕИАС Мониторинг\2014\15 01 Багно\ШАБЛОНЫ В ОБЩЕМ МАССИВЕ\11.BKP.xlsm | C10: Информация
A11: 2014-04-11T11:39:56 | B11: Резервная копия создана: C:\Users\borinskih\Desktop\Запросы через ЕИАС Мониторинг\2014\15 01 Багно\ШАБЛОНЫ В ОБЩЕМ МАССИВЕ\11.BKP.xlsm | C11: Информация
A12: 2014-04-11T11:39:56 | B12: Создание книги для установки обновлений... | C12: Информация
A13: 2014-04-11T11:39:58 | B13: Файл обновления загружен: C:\Users\borinskih\Desktop\Запросы через ЕИАС Мониторинг\2014\15 01 Багно\ШАБЛОНЫ В ОБЩЕМ МАССИВЕ\UPDATE.JKH.OPEN.INFO.BALANCE.WARM.TO.6.0.1.40.xls | C13: Информация
A14: 2014-04-11T11:40:02 | B14: Обновление завершилось удачно! Шаблон JKH.OPEN.INFO.BALANCE.WARM.xlsm сохранен под именем 'JKH.OPEN.INFO.BALANCE.WARM(v6.0.1).xlsm' | C14: Информация
A15: 2016-05-20T09:15:35 | B15: Проверка доступных обновлений... | C15: Информация
A16: 2016-05-20T09:15:36 | B16: Версия шаблона 6.0.1 актуальна, обновление не требуется | C16: Информация
A17: 2016-05-20T10:18:41 | B17: Проверка доступных обновлений... | C17: Информация
A18: 2016-05-20T10:18:42 | B18: Версия шаблона 6.0.1 актуальна, обновление не требуется | C18: Информация
A19: 2016-05-23T08:22:50 | B19: Проверка доступных обновлений... | C19: Информация
A20: 2016-05-23T08:22:53 | B20: Версия шаблона 6.0.1 актуальна, обновление не требуется | C20: Информация
A21: 2016-05-23T09:41:45 | B21: Проверка доступных обновлений... | C21: Информация
A22: 2016-05-23T09:41:45 | B22: Версия шаблона 6.0.1 актуальна, обновление не требуется | C22: Информация
A23: 2016-05-24T08:48:55 | B23: Проверка доступных обновлений... | C23: Информация
A24: 2016-05-24T08:48:56 | B24: Версия шаблона 6.0.1 актуальна, обновление не требуется | C24: Информация
A25: 2016-05-24T14:10:36 | B25: Проверка доступных обновлений... | C25: Информация
A26: 2016-05-24T14:10:39 | B26: Версия шаблона 6.0.1 актуальна, обновление не требуется | C26: Информация
A27: 2016-05-24T14:25:13 | B27: Проверка доступных обновлений... | C27: Информация
A28: 2016-05-24T14:25:14 | B28: Версия шаблона 6.0.1 актуальна, обновление не требуется | C28: Информация
A29: 2017-04-12T13:37:26 | B29: Проверка доступных обновлений... | C29: Информация
A30: 2017-04-12T13:37:28 | B30: Версия шаблона 6.0.1 актуальна, обновление не требуется | C30: Информация

Sheet Титульный
F1: 27568933
F4: =version -> Версия 6.0.1
E5: Показатели, подлежащие раскрытию теплоснабжающими, теплосетевыми организациями
E7: Субъект РФ | F7: Республика Хакасия
E9: Публикация | F9: На сайте регулирующего органа
A11: Сайт организации в сети Интернет | E11: По желанию организации информация раскрыта в дополнительных источниках публикации? | F11: да
E13: Отчетный период (год) | F13: 2015
E15: Является ли данное юридическое лицо подразделением (филиалом) другой организации | F15: нет
E17: Наименование организации | F17: ОП ЗАО "Байкалэнерго" - "Саяногорские тепловые сети"
E18: Наименование филиала
E19: ИНН | F19: 3808108339
E20: КПП | F20: 381201001
E22: Вид деятельности | F22: Производство (некомбинированная выработка)+передача+сбыт
E24: Производство
E25: Передача
E26: Сбыт
E28: Режим налогообложения | F28: общий
E30: Регулируемая организация осуществляет сдачу годового бухгалтерского баланса в налоговые органы | F30: да
E32: Дата направления годового бухгалтерского баланса в налоговые органы | F32: 25.03.2016
E34: Превышает ли выручка от регулируемой деятельности 80% совокупной выручки за отчетный год | F34: да
E36: Организация выполняет инвестиционную программу | F36: нет
A38: Печатное издание | E38: Отсутствует Интернет в границах территории муниципальных образований, где организация осуществляет регулируемые услуги | F38: нет
F40: Адрес регулируемой организации
E41: Юридический адрес | F41: 664043, Российская Федерация, Иркутская область, город Иркутск, бульвар Рябикова, дом 67
E42: Почтовый адрес | F42: 655503, РХ г.Саяногорск Ул.Индустриальная, 19
F44: Руководитель
E45: Фамилия, имя, отчество | F45: Алферов Михаил Алексеевич
E46: (код) номер телефона | F46: 8 (39042) 6-31-84
F48: Главный бухгалтер
E49: Фамилия, имя, отчество | F49: -
E50: (код) номер телефона | F50: -
F52: Должностное лицо, ответственное за составление формы
E53: Фамилия, имя, отчество | F53: Зыкина Людмила Игоревна
E54: Должность | F54: экономист
E55: (код) номер телефона | F55: 8 (39042) 2-84-91
E56: e-mail | F56: zikina_li@nitec.irkutskenergo.ru

Sheet Список МО
D4: Дифференциация тарифа
D5: =IF(org=0,"Не определено",org) -> ОП ЗАО "Байкалэнерго" - "Саяногорские тепловые сети"
F7: Система теплоснабжения
E8: Условный порядковый номер | F8: 1
E9: Описание | F9: г. Саяногорск, п. Майна, рп. Черемушки
D11: № п/п | E11: Муниципальный район | F11: № п/п | G11: Муниципальное образование | H11: ОКТМО
D12: 1 | E12: 2 | F12: 3 | G12: 4 | H12: 5
D13: 0 | F13: 0
C14: О | D14: 1 | E14: город Саяногорск | F14: 1 | G14: город Саяногорск | H14: 95708000
G15: Добавить МО
E16: Добавить МР

Sheet Показатели (факт)
D5: Информация об основных показателях финансово-хозяйственной деятельности регулируемых организаций, включая структуру основных производственных затрат (в части регулируемой деятельности) *
D6: =IF(org=0,"Не определено",org) -> ОП ЗАО "Байкалэнерго" - "Саяногорские тепловые сети"
D8: № п/п | E8: Информация, подлежащая раскрытию | F8: Единица измерения | G8: Значение
D9: 1 | E9: 2 | F9: 3 | G9: 4
D10: 1 | E10: Выручка от регулируемой деятельности, в том числе по видам деятельности: | F10: тыс руб | G10: =SUM(G11:G13) -> 518,227.33
D11: 1.0
C12: О | D12: 1.1 | E12: Проиизводство (некомбинированная выработка) + передача + сбыт | F12: тыс руб | G12: ='[1]РСБУ ПФ с 26 счетом'!$CL$50 -> 518,227.33
E13: Добавить вид деятельности
D14: 2 | E14: Себестоимость производимых товаров (оказываемых услуг) по регулируемому виду деятельности, включая: | F14: тыс руб | G14: =SUM(G15:G16)+G29+SUM(G32:G40)+G43+G46+G48 -> 760,086.45
D15: 2.1 | E15: Расходы на покупаемую тепловую энергию (мощность), теплоноситель | F15: тыс руб | G15: 250,029.50
D16: 2.2 | E16: Расходы на топливо | F16: тыс руб | G16: =SUMIF(flagSum_List02_2,"p",G17:G28) -> 158,057.47
A17: 2.2.0 | D17: =A17 -> 2.2.0
A18: 2.2.1 | C18: О | D18: =A18 -> 2.2.1 | E18: уголь каменный | F18: x | G18: =G19*G20+G21 -> 13,128.30 | H18: p
D19: =A18&".1" -> 2.2.1.1 | E19: Объем | F19: тонны | G19: 12,178.27
D20: =A18&".2" -> 2.2.1.2 | E20: Стоимость за единицу объема | F20: тыс руб | G20: 1.08
D21: =A18&".3" -> 2.2.1.3 | E21: Стоимость доставки | F21: тыс руб | G21: 0.00
D22: =A18&".4" -> 2.2.1.4 | E22: Способ приобретения | F22: x | G22: торги/аукционы
A23: 2.2.2 | C23: О | D23: =A23 -> 2.2.2 | E23: электроэнергия (ВН) | F23: x | G23: =G24*G25+G26 -> 144,929.17 | H23: p
D24: =A23&".1" -> 2.2.2.1 | E24: Объем | F24: тыс кВт.ч | G24: 83,524.00
D25: =A23&".2" -> 2.2.2.2 | E25: Стоимость за единицу объема | F25: тыс руб | G25: 1.74
D26: =A23&".3" -> 2.2.2.3 | E26: Стоимость доставки | F26: тыс руб | G26: 0.00
D27: =A23&".4" -> 2.2.2.4 | E27: Способ приобретения | F27: x | G27: торги/аукционы
E28: Добавить вид топлива
D29: 2.3 | E29: Расходы на покупаемую электрическую энергию (мощность), используемую в технологическом процессе | F29: тыс руб | G29: 32,120.01
D30: 2.3.1 | E30: Средневзвешенная стоимость 1 кВт.ч (с учетом мощности) | F30: руб | G30: =G29/G31 -> 3.03
D31: 2.3.2 | E31: Объем приобретенной электрической энергии | F31: тыс кВт.ч | G31: 10,608.0000
D32: 2.4 | E32: Расходы на приобретение холодной воды, используемой в технологическом процессе | F32: тыс руб | G32: 739.74
D33: 2.5 | E33: Расходы на хим.реагенты, используемые в технологическом процессе | F33: тыс руб | G33: 0.00
D34: 2.6 | E34: Расходы на оплату труда основного производственного персонала | F34: тыс руб | G34: 32,838.14
D35: 2.7 | E35: Отчисления на социальные нужды основного производственного персонала | F35: тыс руб | G35: 9,847.46
D36: 2.8 | E36: Расходы на оплату труда административно-управленческого персонала | F36: тыс руб | G36: =20812.85+8654 -> 29,466.85
D37: 2.9 | E37: Отчисления на социальные нужды административно-управленческого персонала | F37: тыс руб | G37: =5780.8+2132 -> 7,912.80
D38: 2.10 | E38: Расходы на амортизацию основных производственных средств | F38: тыс руб | G38: 2,699.11
D39: 2.11 | E39: Расходы на аренду имущества, используемого для осуществления регулируемого вида деятельности | F39: тыс руб | G39: 2,220.52
D40: 2.12 | E40: Общепроизводственные расходы, в том числе отнесенные к ним: | F40: тыс руб | G40: 45,880.56
D41: 2.12.1 | E41: Расходы на текущий ремонт | F41: тыс руб | G41: 0.00
D42: 2.12.2 | E42: Расходы на капитальный ремонт | F42: тыс руб | G42: 0.00
D43: 2.13 | E43: Общехозяйственные расходы, в том числе отнесенные к ним: | F43: тыс руб | G43: =7817.06+8599.93+4036.95+19250.1+8118.47 -> 47,822.51
D44: 2.13.1 | E44: Расходы на текущий ремонт | F44: тыс руб | G44: 0.00
D45: 2.13.2 | E45: Расходы на капитальный ремонт | F45: тыс руб | G45: 0.00
D46: 2.14 | E46: Расходы на капитальный и текущий ремонт основных производственных средств, в том числе: | F46: тыс руб | G46: 0.00
D47: 2.14.1 | E47: Информация об объемах товаров и услуг, их стоимости и способах приобретения у тех организаций, сумма оплаты услуг которых превышает 20 процентов суммы расходов по указанной статье расходов | F47: x | G47: отсутствует
D48: 2.15 | E48: Прочие расходы, которые подлежат отнесению на регулируемые виды деятельности в соответствии с законодательством РФ | F48: тыс руб | G48: =SUM(G49:G57) -> 140,451.78
D49: 2.15.0
C50: О | D50: 2.15.1 | E50: Плата за выбросы, размещение отходов | F50: тыс руб | G50: 70.81
C51: О | D51: 2.15.2 | E51: Расходы на обязательное страхование | F51: тыс руб | G51: 29.02
C52: О | D52: 2.15.3 | E52: Услуги банков | F52: тыс руб | G52: 329.26
C53: О | D53: 2.15.4 | E53: Налог на имущество | F53: тыс руб | G53: 552.55
C54: О | D54: 2.15.5 | E54: Расходы по сомнительным долгам | F54: тыс руб | G54: 107,536.78
C55: О | D55: 2.15.6 | E55: Проценты к уплате по займам полученным | F55: тыс руб | G55: 29,048.02
C56: О | D56: 2.15.7 | E56: Прибыль на социалную программу | F56: тыс руб | G56: 2,885.34
E57: Добавить прочие расходы
D58: 3 | E58: Валовая прибыль (убытки) от реализации товаров и оказания услуг по регулируемому виду деятельности | F58: тыс руб | G58: =List02_p1-List02_p3 -> -241,859.13
D59: 4 | E59: Чистая прибыль, полученная от регулируемого вида деятельности, в том числе: | F59: тыс руб | G59: 0.00
D60: 4.1 | E60: Размер расходования чистой прибыли на финансирование мероприятий, предусмотренных инвестиционной программой | F60: тыс руб | G60: 0.00
D61: 5 | E61: Сведения об изменении стоимости основных фондов, в том числе за счет их ввода в эксплуатацию (вывода из эксплуатации), а также стоимости их переоценки | F61: тыс руб | G61: 0.00
D62: 5.1 | E62: За счет ввода (вывода) из эксплуатации | F62: тыс руб | G62: 0.00
D63: 6 | E63: Стоимость переоценки основных фондов | F63: тыс руб | G63: 0.00
D64: 7 | E64: Годовая бухгалтерская отчетность, включая бухгалтерский баланс и приложения к нему | F64: x | G64: http://www.irkutskenergo.ru/
D65: 8 | E65: Установленная тепловая мощность объектов основных фондов, используемых для осуществления регулируемых видов деятельности, в том числе по каждому источнику тепловой энергии: | F65: Гкал/ч | G65: =G67+G68 -> 72.90
D66: 8.0
C67: О | D67: 8.1 | E67: электрокотельная №1 | F67: Гкал/ч | G67: 30.90
C68: О | D68: 8.2 | E68: угольная котельная | F68: Гкал/ч | G68: 42.00
E69: Добавить источник тепловой энергии
D70: 9 | E70: Тепловая нагрузка по договорам, заключенным в рамках осуществления регулируемых видов деятельности | F70: Гкал/ч | G70: 208.05
D71: 10 | E71: Объем вырабатываемой регулируемой организацией тепловой энергии в рамках осуществления регулируемых видов деятельности | F71: тыс Гкал | G71: 111.5900
D72: 11 | E72: Объем приобретаемой регулируемой организацией тепловой энергии в рамках осуществления регулируемых видов деятельности | F72: тыс Гкал | G72: 352.2700
D73: 12 | E73: Объем тепловой энергии, отпускаемой потребителям по договорам, заключенным в рамках осуществления регулируемых видов деятельности, в том числе: | F73: тыс Гкал | G73: =SUM(G74:G75) -> 360.1800
D74: 12.1 | E74: Определенном по приборам учета | F74: тыс Гкал | G74: 298.2100
D75: 12.2 | E75: Определенном расчетным путем (нормативам потребления коммунальных услуг) | F75: тыс Гкал | G75: 61.9700
D76: 13 | E76: Нормативы технологических потерь при передаче тепловой энергии, теплоносителя по тепловым сетям, утвержденные уполномоченным органом | F76: Ккал/ч.мес | G76: 6,547,328.77
D77: 14 | E77: Фактический объем потерь при передаче тепловой энергии | F77: тыс Гкал | G77: 98.2800
D78: 15 | E78: Среднесписочная численность основного производственного персонала | F78: чел | G78: 103.00
D79: 16 | E79: Среднесписочная численность административно-управленческого персонала | F79: чел | G79: 44.00
D80: 17 | E80: Удельный расход условного топлива на единицу тепловой энергии, отпускаемой в тепловую сеть, в том числе с разбивкой по источникам тепловой энергии, используемым для осуществления регулируемых видов деятельности | F80: кг усл. топл/Гкал | G80: 209.6000
D81: 17.0
E82: Добавить источник тепловой энергии
D83: 18 | E83: Удельный расход электрической энергии на производство (передачу) тепловой энергии на единицу тепловой энергии, отпускаемой потребителям по договорам, заключенным в рамках осуществления регулируемой деятельности | F83: тыс кВт.ч/Гкал | G83: 1,186.73
D84: 19 | E84: Удельный расход холодной воды на производство (передачу) тепловой энергии на единицу тепловой энергии, отпускаемой потребителям по договорам, заключенным в рамках осуществления регулируемой деятельности | F84: м3/Гкал | G84: 3.10
D85: 20 | E85: Комментарии | F85: x | G85: -
D87: * | E87: Раскрывается не позднее 30 дней со дня сдачи годового бухгалтерского баланса в налоговые органы.

Sheet Показатели (2) (hidden)
D5: Информация об объемах товаров и услуг, их стоимости и способах приобретения *
D6: =IF(org=0,"Не определено",org) -> ОП ЗАО "Байкалэнерго" - "Саяногорские тепловые сети"
D8: № п/п | E8: Наименование поставщика | G8: № п/п | H8: Способ приобретения | I8: Реквизиты договора | K8: № п/п | L8: Наименование товара/услуги | M8: Объем приобретенных товаров, услуг | N8: Единица измерения объема | O8: Стоимость, тыс.руб. | P8: Доля расходов, % (от суммы расходов по указанной статье)
D9: 1 | E9: 2 | G9: 3 | H9: 4 | I9: 5 | K9: 6 | L9: 7 | M9: 8 | N9: 9 | O9: 10 | P9: 11
E10: Расходы на ремонт (текущий и капитальный) основных производственных средств итого. Из них товары и услуги, приобретенные у организаций, сумма оплаты услуг которых превышает 20% суммы расходов по статье | O10: =List02_costs_OPS -> 0.00
D11: 0
E12: Добавить поставщика
D14: * | E14: Раскрывается не позднее 30 дней со дня сдачи годового бухгалтерского баланса в налоговые органы.

Sheet Потр. характеристики
D5: Информация об основных потребительских характеристиках регулируемых товаров и услуг *
D6: =IF(org=0,"Не определено",org) -> ОП ЗАО "Байкалэнерго" - "Саяногорские тепловые сети"
D8: № п/п | E8: Информация, подлежащая раскрытию | F8: Значение | G8: Ссылки на документы
D9: 1 | E9: 2 | F9: 3 | G9: 4
D10: 1 | E10: Количество аварий на тепловых сетях (единиц на км) ** | F10: 0.00
D11: 2 | E11: Количество аварий на источниках тепловой энергии (единиц на источник)** | F11: 0.00
D12: 3 | E12: Показатели надежности и качества, установленные в соответствии с законодательством РФ | F12: 1.18 | G12: http://www.consultant.ru/document/cons_doc_LAW_166505/5e74fede7edc55bdb0f7d63ad02867f1357b0a9b/
D13: 4 | E13: Доля числа исполненных в срок договоров о подключении (технологическом присоединении), % | F13: 100.00
D14: 5 | E14: Средняя продолжительность рассмотрения заявок на подключение (технологическое присоединение), дней | F14: 10.00
D15: 6 | E15: Комментарии | F15: п.3 удельное колическтво перерывов в подаче тепла (ед/км)
D17: * | E17: Раскрывается не позднее 30 дней со дня сдачи годового бухгалтерского баланса в налоговые органы.
D18: ** | E18: Учитывать любое нарушение системы.

Sheet Инвестиции (hidden)
E5: Информация об инвестиционных программах *
E6: =IF(org=0,"Не определено",org) -> ОП ЗАО "Байкалэнерго" - "Саяногорские тепловые сети"
E9: № п/п | F9: Наименование показателя | G9: Единица измерения | H9: Значение | I9: ="Мероприятие " & I10-4 -> Мероприятие 0 | J9: Добавить мероприятие
E10: 1 | F10: 2 | G10: 3 | H10: 4 | I10: 4
E11: 1 | F11: Наименование инвестиционной программы (мероприятия) | G11: x
E12: 2 | F12: Дата утверждения инвестиционной программы | G12: x | I12: x
E13: 3 | F13: Цели инвестиционной программы | G13: x | I13: x
E14: 4 | F14: Наименование органа исполнительной власти субъекта РФ, утвердившего инвестиционную программу | G14: x | I14: x
E15: 5 | F15: Наименование органа местного самоуправления, согласовавшего инвестиционную программу | G15: x | I15: x
E16: 6 | F16: Срок начала реализации инвестиционной программы (мероприятия) | G16: x
E17: 7 | F17: Срок окончания реализации инвестиционной программы (мероприятия) | G17: x
E18: 8 | F18: Потребности в финансовых средствах, необходимых для реализации инвестиционной программы на год, в том числе по источникам финансирования | G18: тыс руб | H18: =SUM(I18:J18) -> 0.00 | I18: =SUMIF(List06_flag_year,"y",I19:I22) -> 0.00
A19: 8.0 | E19: =A19 -> 8.0 | G19: тыс руб | H19: =SUM(H20:H21) -> 0.00 | I19: =SUM(I20:I21) -> 0.00 | J19: y
B20: 1 | E20: =A19&"."&B20 -> 8.0.1 | G20: тыс руб
F21: Добавить источники
F22: Добавить год
E23: 9 | F23: Целевые показатели инвестиционной программы | H23: x | I23: x
E24: 9.1 | F24: Срок окупаемости | G24: лет | H24: x | I24: x
E25: 9.1.1 | F25: Факт | G25: лет
E26: 9.1.2 | F26: План | G26: лет
E27: 9.2 | F27: Перебои в снабжении потребителей | G27: часов на потребителя | H27: x | I27: x
E28: 9.2.1 | F28: Факт | G28: часов на потребителя
E29: 9.2.2 | F29: План | G29: часов на потребителя
E30: 9.3 | F30: Продолжительность (бесперебойность) поставки товаров и услуг | G30: час/день | H30: x | I30: x
E31: 9.3.1 | F31: Факт | G31: час/день
E32: 9.3.2 | F32: План | G32: час/день
E33: 9.4 | F33: Уровень потерь и неучтенного потребления | G33: % | H33: x | I33: x
E34: 9.4.1 | F34: Факт | G34: %
E35: 9.4.2 | F35: План | G35: %
E36: 9.5 | F36: Коэффициент потерь | G36: Гкал/км | H36: x | I36: x
E37: 9.5.1 | F37: Факт | G37: Гкал/км
E38: 9.5.2 | F38: План | G38: Гкал/км
E39: 9.6 | F39: Износ систем коммунальной инфраструктуры | G39: % | H39: x | I39: x
E40: 9.6.1 | F40: Факт | G40: %
E41: 9.6.2 | F41: План | G41: %
E42: 9.7 | F42: Износ оборудования производства (котлы) | G42: % | H42: x | I42: x
E43: 9.7.1 | F43: Факт | G43: %
E44: 9.7.2 | F44: План | G44: %
E45: 9.8 | F45: Износ оборудования передачи тепловой энергии (сети) | G45: % | H45: x | I45: x
E46: 9.8.1 | F46: Факт | G46: %
E47: 9.8.2 | F47: План | G47: %
E48: 9.9 | F48: Удельный вес сетей, нуждающихся в замене | G48: % | H48: x | I48: x
E49: 9.9.1 | F49: Факт | G49: %
E50: 9.9.2 | F50: План | G50: %
E51: 9.10 | F51: Обеспеченность потребления товаров и услуг приборами учета | G51: % | H51: x | I51: x
E52: 9.10.1 | F52: Факт | G52: %
E53: 9.10.2 | F53: План | G53: %
E54: 9.11 | F54: Расход топлива на 1 Гкал | G54: т усл.топл/Гкал | H54: x | I54: x
E55: 9.11.1 | F55: Факт | G55: т усл.топл/Гкал
E56: 9.11.2 | F56: План | G56: т усл.топл/Гкал
E57: 9.12 | F57: Расход электроэнергии на выработку 1 Гкал | G57: кВт.ч/Гкал | H57: x | I57: x
E58: 9.12.1 | F58: Факт | G58: кВт.ч/Гкал
E59: 9.12.2 | F59: План | G59: кВт.ч/Гкал
E60: 9.13 | F60: Расход электроэнергии на передачу 1 Гкал | G60: кВт.ч/Гкал | H60: x | I60: x
E61: 9.13.1 | F61: Факт | G61: кВт.ч/Гкал
E62: 9.13.2 | F62: План | G62: кВт.ч/Гкал
E63: 9.14 | F63: Количество аварий (с учетом котельных) | G63: ед | H63: x | I63: x
E64: 9.14.1 | F64: Факт | G64: ед
E65: 9.14.2 | F65: План | G65: ед
E66: 9.15 | F66: Количество аварий на 1 км тепловых сетей | G66: ед | H66: x | I66: x
E67: 9.15.1 | F67: Факт | G67: ед
E68: 9.15.2 | F68: План | G68: ед
E69: 9.16 | F69: Производительность труда на 1 человека | G69: тыс руб/чел | H69: x | I69: x
E70: 9.16.1 | F70: Факт | G70: тыс руб/чел
E71: 9.16.2 | F71: План | G71: тыс руб/чел
A72: 9.16 | E72: =A72 -> 9.16 | H72: x | I72: x
E73: =A72&".1" -> 9.16.1 | F73: Факт | G73: =IF(G72="","x",G72) -> x
E74: =A72&".2" -> 9.16.2 | F74: План | G74: =IF(G72="","x",G72) -> x
F75: Добавить показатель
E76: 10 | F76: Использование инвестиционных средств за отчетный год | G76: тыс руб | H76: x | I76: x
A77: 10.0 | E77: =A77 -> 10.0 | F77: Всего, в том числе по источникам финансирования: | G77: тыс руб | H77: =SUM(I77:J77) -> 0.00 | I77: =SUM(I78:I81) -> 0.00
E78: =A77&".1" -> 10.0.1 | F78: I квартал | G78: тыс руб | H78: =SUM(I78:J78) -> 0.00 | I78: =SUMIF($F$82:$F$87,$F78,I$82:I$87) -> 0.00
E79: =A77&".2" -> 10.0.2 | F79: II квартал | G79: тыс руб | H79: =SUM(I79:J79) -> 0.00 | I79: =SUMIF($F$82:$F$87,$F79,I$82:I$87) -> 0.00
E80: =A77&".3" -> 10.0.3 | F80: III квартал | G80: тыс руб | H80: =SUM(I80:J80) -> 0.00 | I80: =SUMIF($F$82:$F$87,$F80,I$82:I$87) -> 0.00
E81: =A77&".4" -> 10.0.4 | F81: IV квартал | G81: тыс руб | H81: =SUM(I81:J81) -> 0.00 | I81: =SUMIF($F$82:$F$87,$F81,I$82:I$87) -> 0.00
A82: 10.0 | E82: =A82 -> 10.0 | G82: тыс руб | H82: =SUM(H83:H86) -> 0.00 | I82: =SUM(I83:I86) -> 0.00
E83: =A82&".1" -> 10.0.1 | F83: I квартал | G83: тыс руб
E84: =A82&".2" -> 10.0.2 | F84: II квартал | G84: тыс руб
E85: =A82&".3" -> 10.0.3 | F85: III квартал | G85: тыс руб
E86: =A82&".4" -> 10.0.4 | F86: IV квартал | G86: тыс руб
F87: Добавить источники
E89: * | F89: Раскрывается не позднее 30 дней со дня сдачи годового бухгалтерского баланса в налоговые органы.

Sheet Инвестиции исправления (hidden)
D5: Внесение изменений в инвестиционную программу *
D6: =IF(org=0,"Не определено",org) -> ОП ЗАО "Байкалэнерго" - "Саяногорские тепловые сети"
D8: № п/п | E8: Дата внесения изменений | F8: Внесенные изменения
D9: 1 | E9: 2 | F9: 3
D10: 0
E11: Добавить строку
D13: * | E13: Раскрывается регулируемой организацией в течение 10 календарных дней со дня принятия органом исполнительной власти субъекта Российской Федерации решения о внесении изменений в инвестиционную программу

Sheet Ссылки на публикации
D5: Ссылки на публикации
D6: =IF(org=0,"Не определено",org) -> ОП ЗАО "Байкалэнерго" - "Саяногорские тепловые сети"
D9: № п/п | E9: Содержание | F9: Наименование источника публикации | G9: Дата размещения информации | H9: Номер печатного издания | I9: Дата печатного издания | J9: Ссылка на PDF копии издания | K9: Адрес страницы официального сайта организации в сети интернет, на которой размещена раскрываемая информация
D10: 1 | E10: 2 | F10: 3 | G10: 4 | H10: 5 | I10: 6 | J10: 7 | K10: 8
A11: 1 | D11: =A11 -> 1 | E11: Информация об основных показателях финансово-хозяйственной деятельности регулируемой организации, включая структуру основных производственных затрат (в части регулируемой деятельности) (п.19 Постановления Правительства Российской Федерации от 05 июля 2013 г. N 570 "О стандартах раскрытия информации теплоснабжающими, теплосетевыми организациями и органами регулирования")
D12: =A11&".1" -> 1.1 | E12: Сайт организации в сети Интернет | F12: официальный сайт Госкомтарифэнерго Хакасии | G12: 25.04.2016 | H12: x | I12: x | J12: x | K12: http://www.r-19.ru/authorities/state-committee-on-tariffs-and-energy-of-the-republic-of-khakassia/common/
A13: 2 | D13: =A13 -> 2 | E13: Информация об основных потребительских характеристиках регулируемых товаров и услуг, оказываемых регулируемой организацией (п.20 Постановления Правительства Российской Федерации от 05 июля 2013 г. N 570 "О стандартах раскрытия информации теплоснабжающими, теплосетевыми организациями и органами регулирования")
D14: =A13&".1" -> 2.1 | E14: Сайт организации в сети Интернет | F14: официальный сайт ПАО "Иркутскэнерго" | G14: 25.04.2016 | H14: x | I14: x | J14: x | K14: http://www.irkutskenergo.ru/
D15: =A13&".2" -> 2.2 | E15: Печатное издание | K15: x
E18: Добавить

Sheet Комментарии
D7: Комментарии
D8: =IF(org=0,"Не определено",org) -> ОП ЗАО "Байкалэнерго" - "Саяногорские тепловые сети"
D10: № п/п | E10: Комментарий
D11: 1 | E11: 2
D12: 0
E13: Добавить

Sheet Проверка
B2: Результат проверки
B4: Ссылка1 | C4: Ссылка2 | D4: Причина | E4: Статус
B5: Ссылки на публикации!K12 | D5: Не верно указана гиперссылка на адрес сайта в сети интернет! | E5: Предупреждение

Sheet AllSheetsInThisWorkbook (hidden)
A1: Расчетные листы | B1: Скрытые листы
A2: Инструкция | B2: AllSheetsInThisWorkbook
A3: Лог обновления | B3: TEHSHEET
A4: Титульный | B4: et_union_hor
A5: Список МО | B5: et_union_vert
A6: Показатели (факт) | B6: modInfo
A7: Показатели (2) | B7: modRegion
A8: Потр. характеристики | B8: modReestr
A9: Инвестиции | B9: modfrmSelectData
A10: Инвестиции исправления | B10: modfrmReestr
A11: Ссылки на публикации | B11: modUpdTemplMain
A12: Комментарии | B12: REESTR_ORG
A13: Проверка | B13: modClassifierValidate
B14: modProv
B15: modHyp
B16: modList00
B17: modList01
B18: modList02
B19: modList03
B20: modList04
B21: modList05
B22: modList06
B23: modList07
B24: modfrmDateChoose
B25: modComm
B26: modThisWorkbook
B27: REESTR_MO
B28: modfrmReestrMR
B29: modfrmCheckUpdates
B30: CopyList

Sheet TEHSHEET (hidden)
A1: REGION | B1: Список с видами деятельности | D1: year_list | E1: logical | F1: Месяц (MONTH) | G1: Квартал (QUARTER) | H1: Месяц (kind_of_publication) | I1: Режим налогообложения /kind_of_NDS/ | J1: Вид деятельности, на которую установлен тариф /kind_of_activity/ | K1: Вид услуги, на которую установлен тариф /kind_of_service_WARM/ | L1: Номер СЦХВ(СЦВО) /SKI_number/ | M1: Виды топлива /kind_of_fuels/ | O1: цель инвестиционной программы /kind_of_purchase_method/ | P1: Источники финансирования /source_of_funding/ | Q1: цель инвестиционной программы /objective_of_IPR/ | T1: Рабочие диапазоны
A2: Алтайский край | B2: kind_of_activity_01 | D2: 2013 | E2: да | F2: январь | G2: I квартал | H2: На официальном сайте организации | I2: общий | J2: kind_of_activity_01 | K2: Производство | L2: 1 | M2: газ природный по регулируемой цене | N2: тыс м3 | O2: торги/аукционы | P2: кредиты банков | Q2: автоматизация (с уменьшением штата) | R2: FALSE | T2: TRUE
A3: Амурская область | D3: 2014 | E3: нет | F3: февраль | G3: II квартал | H3: На сайте регулирующего органа | I3: общий с учетом освобождения от уплаты НДС | J3: Комбинированная выработка | K3: Передача | L3: 2 | M3: газ природный по нерегулируемой цене | N3: тыс м3 | O3: прямые договора без торгов | P3: кредиты иностранных банков | Q3: уменьшение удельных затрат (повышение КПД) | R3: FALSE
A4: Архангельская область | D4: 2015 | F4: март | G4: III квартал | I4: специальный (упрощенная система налогообложения, система налогообложения для сельскохозяйственных товаропроизводителей) | J4: Некомбинированная выработка | K4: Сбыт | L4: 3 | M4: газ сжиженный | N4: кг | O4: прочее | P4: заемные ср-ва др. организаций | Q4: уменьшение издержек на производство | R4: FALSE
A5: Астраханская область | D5: 2016 | E5: logical_two | F5: апрель | G5: IV квартал | J5: Нет производства т/э | L5: 4 | M5: газовый конденсат | N5: тонны | P5: федеральный бюджет | Q5: снижение аварийности | R5: FALSE
A6: Белгородская область | D6: 2017 | E6: есть | F6: май | I6: НДС для общего режима налогообложения /kind_of_NDS_tariff/ | J6: Смешанное производство | L6: 5 | M6: гшз | N6: тонны | P6: бюджет субъекта РФ | Q6: прочее | R6: FALSE
A7: Брянская область | E7: отсутствует | F7: июнь | I7: тариф указан с НДС для плательщиков НДС | L7: 6 | M7: мазут | N7: тонны | P7: бюджет муниципального образования
A8: Владимирская область | F8: июль | I8: тариф указан без НДС для плательщиков НДС | J8: kind_of_activity_02 | L8: 7 | M8: нефть | N8: тонны | P8: ср-ва внебюджетных фондов
A9: Волгоградская область | F9: август | J9: Комбинированная выработка | L9: 8 | M9: дизельное топливо | N9: тонны | P9: прибыль, направляемая на инвестиции
A10: Вологодская область | F10: сентябрь | I10: НДС для прочих режимов налогообложения /kind_of_NDS_tariff_etc/ | J10: Некомбинированная выработка | L10: 9 | M10: уголь бурый | N10: тонны | P10: амортизация
A11: Воронежская область | F11: октябрь | I11: тариф для организаций не являющихся плательщиками НДС | J11: Смешанное производство | L11: 10 | M11: уголь каменный | N11: тонны | P11: инвестиционная надбавка к тарифу
A12: г.Байконур | F12: ноябрь | J12: Передача | L12: 11 | M12: торф | N12: тонны | P12: плата за подключение
A13: г. Москва | F13: декабрь | J13: Сбыт | L13: 12 | M13: дрова | N13: м3 | P13: прочие средства
A14: г.Санкт-Петербург | L14: 13 | M14: опил | N14: м3
A15: Еврейская автономная область | J15: kind_of_activity_03 | L15: 14 | M15: отходы березовые | N15: м3
A16: Забайкальский край | J16: Комбинированная выработка | L16: 15 | M16: отходы осиновые | N16: м3
A17: Ивановская область | J17: Некомбинированная выработка | L17: 16 | M17: печное топливо | N17: тонны
A18: Иркутская область | J18: Смешанное производство | L18: 17 | M18: пилеты | N18: тонны
A19: Кабардино-Балкарская республика | J19: Передача | L19: 18 | M19: смола | N19: тонны
A20: Калининградская область | J20: Сбыт | L20: 19 | M20: щепа | N20: м3
A21: Калужская область | J21: Производство (некомбинированная выработка)+сбыт | L21: 20 | M21: горючий сланец | N21: тонны
A22: Камчатский край | J22: Передача+сбыт | M22: керосин | N22: тонны
A23: Карачаево-Черкесская республика | J23: Производство (комбинированная выработка)+сбыт | M23: кислородно-водородная смесь | N23: тыс м3
A24: Кемеровская область | J24: Производство (некомбинированная выработка)+передача | M24: электроэнергия (НН) | N24: тыс кВт.ч
A25: Кировская область | J25: Производство (комбинированная выработка)+передача | M25: электроэнергия (СН1) | N25: тыс кВт.ч
A26: Костромская область | J26: Производство (комбинированная выработка)+передача+сбыт | M26: электроэнергия (СН2) | N26: тыс кВт.ч
A27: Краснодарский край | J27: Производство (некомбинированная выработка)+передача+сбыт | M27: электроэнергия (ВН) | N27: тыс кВт.ч
A28: Красноярский край | J28: Смешанное производство+сбыт | M28: мощность | N28: тыс кВт
A29: Курганская область | J29: Смешанное производство+передача | M29: прочее
A30: Курская область | J30: Смешанное производство+передача+сбыт
A31: Ленинградская область
A32: Липецкая область
A33: Магаданская область
A34: Московская область
A35: Мурманская область
A36: Ненецкий автономный округ
A37: Нижегородская область
A38: Новгородская область
A39: Новосибирская область
A40: Омская область | B40: kind_of_activity_02
A41: Оренбургская область
A42: Орловская область
A43: Пензенская область
A44: Пермский край
A45: Приморский край
A46: Псковская область
A47: Республика Адыгея
A48: Республика Алтай
A49: Республика Башкортостан
A50: Республика Бурятия
A51: Республика Дагестан
A52: Республика Ингушетия
A53: Республика Калмыкия
A54: Республика Карелия
A55: Республика Коми
A56: Республика Марий Эл
A57: Республика Мордовия
A58: Республика Саха (Якутия)
A59: Республика Северная Осетия-Алания
A60: Республика Татарстан
A61: Республика Тыва
A62: Республика Хакасия
A63: Ростовская область
A64: Рязанская область
A65: Самарская область
A66: Саратовская область
A67: Сахалинская область
A68: Свердловская область
A69: Смоленская область
A70: Ставропольский край
A71: Тамбовская область
A72: Тверская область
A73: Томская область
A74: Тульская область
A75: Тюменская область
A76: Удмуртская республика
A77: Ульяновская область | B77: kind_of_activity_02
A78: Хабаровский край
A79: Ханты-Мансийский автономный округ | B79: kind_of_activity_02
A80: Челябинская область
A81: Чеченская республика
A82: Чувашская республика
A83: Чукотский автономный округ
A84: Ямало-Ненецкий автономный округ
A85: Ярославская область

Sheet et_union_hor (hidden)
A2: et_List01 | B2: et_List01_1
F4: 1
G5: Добавить МО
A8: et_Comm
A13: et_List03
A16: 4 | D16: =A16 -> 4
D17: =A16&".1" -> 4.1 | E17: Сайт организации в сети Интернет | H17: x | I17: x | J17: x
D18: =A16&".2" -> 4.2 | E18: Печатное издание | K18: x
A22: edit_List03_ipr_pub
A24: 3 | D24: =A24 -> 3 | E24: Информация об инвестиционных программах регулируемой организации (п.21 Постановления Правительства Российской Федерации от 05 июля 2013 г. N 570 "О стандартах раскрытия информации теплоснабжающими, теплосетевыми организациями и органами регулирования")
D25: =A24&".1" -> 3.1 | E25: Сайт организации в сети Интернет | H25: x | I25: x | J25: x
A28: et_List02_1
F30: тыс руб
A32: et_List02_2
D34: =A34 -> 0 | F34: x | G34: =G35*G36+G37 -> 0.00 | H34: p
D35: =A34&".1" -> .1 | E35: Объем
D36: =A34&".2" -> .2 | E36: Стоимость за единицу объема | F36: тыс руб
D37: =A34&".3" -> .3 | E37: Стоимость доставки | F37: тыс руб
D38: =A34&".4" -> .4 | E38: Способ приобретения | F38: x
A40: et_List02_3
F42: Гкал/ч
A44: et_List02_4
F46: кг усл. топл/Гкал
A48: et_List02_5
F50: тыс руб
A53: et_List04_1 | B53: et_List04_2 | C53: et_List04_3
D55: 1 | H55: Итого по поставщику | O55: =SUM(O56:O58) -> 0.00 | P55: =nerr(O55/List02_costs_OPS)*100 -> 0.00
G56: 1 | K56: 1
L57: Добавить товар/услугу
H58: Добавить способ
A61: et_List07_1

Sheet et_union_vert (hidden)

Sheet modInfo (hidden)
B1: Титульный
B2: Для выбора того или иного источника публикации выполните двойной щелчок по синей ячейке напротив соответствующего источника. ВНИМАНИЕ! Если Вы снимаете галочку с пункта, то будут скрыты и очищены соответствующие строки на листе "Ссылки на публикации"! Опубликование перечисленных в шаблоне показателей на сайте организации в сети Интернет и в печатных изданиях не обязательно, если данный шаблон предоставлен по системе ЕИАС (региональный сегмент).
B3: Обязательное опубликование на официальном сайте органа исполнительной власти субъекта Российской Федерации в области государственного регулирования цен (тарифов), и (или) на официальном сайте органа местного самоуправления поселения или городского округа в случае их наделения в соответствии с законом субъекта Российской Федерации полномочиями по государственному регулированию цен (тарифов) предусмотрено пунктом 3 (а) постановления Правительства N 570 от 05.07.2013
B4: Задайте период регулирования, выбрав даты начала и окончания очередного периода регулирования из календаря (иконка справа от указанной ячейки), либо введите дату непосредственно в ячейку в формате - 'ДД.ММ.ГГГГ'
B5: Шаблон заполняется раздельно по каждому виду тарифа
B6: В зависимости от указанного вида деятельности будут доступны для заполнения поля 'Производство', 'Передача' и 'Сбыт'
B7: Ссылки на публикации
B8: Вводите адрес сайта, не нарушая цвет ячейки /если копируете гиперссылку из браузера, то выполните двойной щелчок по ячейке и только после этого можете вставить скопированный элемент/
B9: Материалы (документы) необходимо загружать с помощью "ЕИАС Мониторинг". Ссылка на инструкцию по загрузке материалов (документов) расположена на листе 'Инструкция' в п.'Методология заполнения'. Ввводите ссылку, не нарушая цвет ячейки /если копируете гиперссылку из браузера, то выполните двойной щелчок по ячейке и только после этого можете вставить скопированный элемент/.
B10: Если для какого-либо пункта графы 'Наименование источника (сайта или печатного издания)' информация не раскрывалась, то в соответствующем поле укажите - 'не раскрывалась'
B11: Список МО
B12: В случае, если тариф не дифференцируется по системам теплоснабжения, перечислите все муниципальные районы, в которых организация осуществляет услуги по передаче тепловой энергии
B13: В случае, если тариф не дифференцируется по системам теплоснабжения, перечислите все муниципальные образования, в которых организация осуществляет услуги по передаче тепловой энергии
B14: Признак дифференциации тарифа
B15: В случае, если тариф не дифференцируется по системам теплоснабжения, укажите '1'. Введите значение от 1 до 100, чтобы указать очередной условный порядковый номер системы теплоснабжения
B16: Потр. Характеристики
B17: Документы необходимо загружать с помощью "ЕИАС Мониторинг". Ссылка на инструкцию по загрузке документов расположена на листе 'Инструкция' в п.'Методология заполнения'. Ввводите ссылку, не нарушая цвет ячейки /если копируете гиперссылку из браузера, то выполните двойной щелчок по ячейке и только после этого можете вставить скопированный элемент/.

Sheet modRegion (hidden)

Sheet modReestr (hidden)

Sheet modfrmSelectData (hidden)

Sheet modfrmReestr (hidden)

Sheet modUpdTemplMain (hidden)

Sheet REESTR_ORG (hidden)
A1: № | B1: NSRF | C1: MR_NAME | D1: OKTMO_MR_NAME | E1: MO_NAME | F1: OKTMO_NAME | G1: RST_ORG_ID | H1: ORG_NAME | I1: INN_NAME | J1: KPP_NAME | K1: VDET_NAME
A2: 1 | B2: Республика Хакасия | C2: Алтайский | D2: 95605000 | E2: Аршановское | F2: 95605405 | G2: 26354663 | H2: МУП "Тепло" с.Аршаново | I2: 1904004931 | J2: 190401001 | K2: производство (некомбинированная выработка)+передача+сбыт | L2: WARM
A3: 2 | B3: Республика Хакасия | C3: Алтайский | D3: 95605000 | E3: Белоярское | F3: 95605410 | G3: 30373066 | H3: МУП "ПРОГРЕСС" | I3: 1901125790 | J3: 190101001 | K3: Теплоноситель - Сбыт :: Производство :: Передача | L3: WARM
A4: 3 | B4: Республика Хакасия | C4: Алтайский | D4: 95605000 | E4: Белоярское | F4: 95605410 | G4: 30373066 | H4: МУП "ПРОГРЕСС" | I4: 1901125790 | J4: 190101001 | K4: производство (некомбинированная выработка)+передача+сбыт | L4: WARM
A5: 4 | B5: Республика Хакасия | C5: Алтайский | D5: 95605000 | E5: Белоярское | F5: 95605410 | G5: 26354666 | H5: ОАО "Белоярский тепловодоканал" | I5: 1901098096 | J5: 190101001 | K5: производство (некомбинированная выработка)+передача+сбыт | L5: WARM
A6: 5 | B6: Республика Хакасия | C6: Алтайский | D6: 95605000 | E6: Белоярское | F6: 95605410 | G6: 27882031 | H6: ООО "Алтай ЭнергоРесурс" | I6: 1904005131 | J6: 190401001 | K6: производство (некомбинированная выработка)+передача+сбыт | L6: WARM
A7: 6 | B7: Республика Хакасия | C7: Алтайский | D7: 95605000 | E7: Белоярское | F7: 95605410 | G7: 28453986 | H7: ООО "Теплоэнрегия" | I7: 1901115263 | J7: 190101001 | K7: производство (некомбинированная выработка)+передача+сбыт | L7: WARM
A8: 7 | B8: Республика Хакасия | C8: Алтайский | D8: 95605000 | E8: Белоярское | F8: 95605410 | G8: 28870819 | H8: ООО "УЖКС" | I8: 1901120619 | J8: 190101001 | K8: производство (некомбинированная выработка)+передача+сбыт | L8: WARM
A9: 8 | B9: Республика Хакасия | C9: Алтайский | D9: 95605000 | E9: Белоярское | F9: 95605410 | G9: 26354635 | H9: ФГБУ "Енисейрыбвод" | I9: 2466053121 | J9: 246601001 | K9: производство (некомбинированная выработка)+передача+сбыт | L9: WARM
A10: 9 | B10: Республика Хакасия | C10: Алтайский | D10: 95605000 | E10: Изыхское | F10: 95605418 | G10: 28012374 | H10: МУП МО Изыхский сельсовет "Изыхское" | I10: 1901109439 | J10: 190101001 | K10: производство (некомбинированная выработка)+передача | L10: WARM
A11: 10 | B11: Республика Хакасия | C11: Алтайский | D11: 95605000 | E11: Изыхское | F11: 95605418 | G11: 29648727 | H11: ООО "Агро Лидер" | I11: 1901114968 | J11: 190101001 | K11: производство (некомбинированная выработка)+передача+сбыт | L11: WARM
A12: 11 | B12: Республика Хакасия | C12: Алтайский | D12: 95605000 | E12: Кировское | F12: 95605420 | G12: 28453858 | H12: МУП "Импульс" | I12: 1901114580 | J12: 190101001 | K12: производство (некомбинированная выработка)+передача+сбыт | L12: WARM
A13: 12 | B13: Республика Хакасия | C13: Алтайский | D13: 95605000 | E13: Новороссийское | F13: 95605435 | G13: 28036615 | H13: МУП "Надежда" | I13: 1901109485 | J13: 190101001 | K13: производство (некомбинированная выработка)+передача+сбыт | L13: WARM
A14: 13 | B14: Республика Хакасия | C14: Алтайский | D14: 95605000 | E14: Новороссийское | F14: 95605435 | G14: 26354664 | H14: МУП "Новороссийское" | I14: 1904004949 | J14: 190401001 | K14: производство (некомбинированная выработка)+передача+сбыт | L14: WARM
A15: 14 | B15: Республика Хакасия | C15: Алтайский | D15: 95605000 | E15: Очурское | F15: 95605440 | G15: 26354662 | H15: МУП "Енисей" с.Очуры | I15: 1904004924 | J15: 190401001 | K15: производство (некомбинированная выработка)+передача+сбыт | L15: WARM
A16: 15 | B16: Республика Хакасия | C16: Алтайский | D16: 95605000 | E16: Очурское | F16: 95605440 | G16: 30373107 | H16: МУП ЖКХ "Очуры" | I16: 1901126890 | J16: 190101001 | K16: Теплоноситель - Сбыт :: Производство :: Передача | L16: WARM
A17: 16 | B17: Республика Хакасия | C17: Алтайский | D17: 95605000 | E17: Очурское | F17: 95605440 | G17: 30373107 | H17: МУП ЖКХ "Очуры" | I17: 1901126890 | J17: 190101001 | K17: производство (некомбинированная выработка)+передача+сбыт | L17: WARM
A18: 17 | B18: Республика Хакасия | C18: Алтайский | D18: 95605000 | E18: Подсинское | F18: 95605445 | G18: 26522906 | H18: ГУП "Хакресводоканал" | I18: 1901001202 | J18: 191001001 | K18: производство (некомбинированная выработка)+передача+сбыт | L18: WARM
A19: 18 | B19: Республика Хакасия | C19: Алтайский | D19: 95605000 | E19: Подсинское | F19: 95605445 | G19: 30394679 | H19: МУП "Подсинее" | I19: 1901121570 | J19: 190101001 | K19: производство (некомбинированная выработка)+сбыт | L19: WARM
A20: 19 | B20: Республика Хакасия | C20: Алтайский | D20: 95605000 | E20: Подсинское | F20: 95605445 | G20: 26354660 | H20: МУП ЖКХ с.Подсинее | I20: 1904003198 | J20: 190401001 | K20: Передача | L20: WARM
A21: 20 | B21: Республика Хакасия | C21: Алтайский | D21: 95605000 | E21: Подсинское | F21: 95605445 | G21: 26355163 | H21: ООО "Сибирская губерния" | I21: 1904005364 | J21: 190401001 | K21: производство (некомбинированная выработка) | L21: WARM
A22: 21 | B22: Республика Хакасия | C22: Аскизский | D22: 95608000 | E22: Аскизское | F22: 95608405 | G22: 26824651 | H22: Красноярская дирекция по тепловодоснабжению | I22: 7708503727 | J22: 246645014 | K22: производство (некомбинированная выработка)+передача+сбыт | L22: WARM
A23: 22 | B23: Республика Хакасия | C23: Аскизский | D23: 95608000 | E23: Аскизское | F23: 95608405 | G23: 26354669 | H23: ООО "Аскизсервис" | I23: 1905009450 | J23: 190501001 | K23: производство (некомбинированная выработка)+передача+сбыт | L23: WARM
A24: 23 | B24: Республика Хакасия | C24: Аскизский | D24: 95608000 | E24: Аскизское | F24: 95608405 | G24: 28873522 | H24: ООО "Аскизтеплосервис" | I24: 1905011748 | J24: 190501001 | K24: производство (некомбинированная выработка)+передача+сбыт | L24: WARM
A25: 24 | B25: Республика Хакасия | C25: Аскизский | D25: 95608000 | E25: Базинское | F25: 95608410 | G25: 26824651 | H25: Красноярская дирекция по тепловодоснабжению | I25: 7708503727 | J25: 246645014 | K25: производство (некомбинированная выработка)+передача+сбыт | L25: WARM
A26: 25 | B26: Республика Хакасия | C26: Аскизский | D26: 95608000 | E26: Балыксинское | F26: 95608409 | G26: 26824651 | H26: Красноярская дирекция по тепловодоснабжению | I26: 7708503727 | J26: 246645014 | K26: производство (некомбинированная выработка)+передача+сбыт | L26: WARM
A27: 26 | B27: Республика Хакасия | C27: Аскизский | D27: 95608000 | E27: Бельтирское | F27: 95608412 | G27: 26824651 | H27: Красноярская дирекция по тепловодоснабжению | I27: 7708503727 | J27: 246645014 | K27: производство (некомбинированная выработка)+передача+сбыт | L27: WARM
A28: 27 | B28: Республика Хакасия | C28: Аскизский | D28: 95608000 | E28: Бельтирское | F28: 95608412 | G28: 30866380 | H28: МУП "Бельтирская ТСК" | I28: 1905012597 | J28: 190501001 | K28: производство (некомбинированная выработка)+передача+сбыт | L28: WARM
A29: 28 | B29: Республика Хакасия | C29: Аскизский | D29: 95608000 | E29: Бельтирское | F29: 95608412 | G29: 26983643 | H29: МУП "Бельтирское ЖКХ" | I29: 1905010342 | J29: 190501001 | K29: производство (некомбинированная выработка)+передача+сбыт | L29: WARM
A30: 29 | B30: Республика Хакасия | C30: Аскизский | D30: 95608000 | E30: Бирикчульское | F30: 95608413 | G30: 26824651 | H30: Красноярская дирекция по тепловодоснабжению | I30: 7708503727 | J30: 246645014 | K30: производство (некомбинированная выработка)+передача+сбыт | L30: WARM
A31: 30 | B31: Республика Хакасия | C31: Аскизский | D31: 95608000 | E31: Верх-Аскизское | F31: 95608415 | G31: 26824651 | H31: Красноярская дирекция по тепловодоснабжению | I31: 7708503727 | J31: 246645014 | K31: производство (некомбинированная выработка)+передача+сбыт | L31: WARM
A32: 31 | B32: Республика Хакасия | C32: Аскизский | D32: 95608000 | E32: Есинское | F32: 95608420 | G32: 26824651 | H32: Красноярская дирекция по тепловодоснабжению | I32: 7708503727 | J32: 246645014 | K32: производство (некомбинированная выработка)+передача+сбыт | L32: WARM
A33: 32 | B33: Республика Хакасия | C33: Аскизский | D33: 95608000 | E33: Кызласское | F33: 95608430 | G33: 26824651 | H33: Красноярская дирекция по тепловодоснабжению | I33: 7708503727 | J33: 246645014 | K33: производство (некомбинированная выработка)+передача+сбыт | L33: WARM
A34: 33 | B34: Республика Хакасия | C34: Аскизский | D34: 95608000 | E34: Кызласское | F34: 95608430 | G34: 26444618 | H34: ООО "Чазой" с.Кызлас | I34: 1905009756 | J34: 190501001 | K34: производство (некомбинированная выработка)+передача+сбыт | L34: WARM
A35: 34 | B35: Республика Хакасия | C35: Аскизский | D35: 95608000 | E35: Поселок Аскиз | F35: 95608151 | G35: 26824651 | H35: Красноярская дирекция по тепловодоснабжению | I35: 7708503727 | J35: 246645014 | K35: производство (некомбинированная выработка)+передача+сбыт | L35: WARM
A36: 35 | B36: Республика Хакасия | C36: Аскизский | D36: 95608000 | E36: Поселок Аскиз | F36: 95608151 | G36: 27201122 | H36: МУП МО Аскизский поссовет "Аскизские тепловые сети" | I36: 1905010720 | J36: 190501001 | K36: производство (некомбинированная выработка)+передача+сбыт | L36: WARM
A37: 36 | B37: Республика Хакасия | C37: Аскизский | D37: 95608000 | E37: Поселок Бискамжа | F37: 95608165 | G37: 26824651 | H37: Красноярская дирекция по тепловодоснабжению | I37: 7708503727 | J37: 246645014 | K37: производство (некомбинированная выработка)+передача+сбыт | L37: WARM
A38: 37 | B38: Республика Хакасия | C38: Аскизский | D38: 95608000 | E38: Поселок Бискамжа | F38: 95608165 | G38: 27566866 | H38: МУП МО Бискамжинский поссовет "Жилсервис" | I38: 1905010991 | J38: 190501001 | K38: производство (некомбинированная выработка)+передача+сбыт | L38: WARM
A39: 38 | B39: Республика Хакасия | C39: Аскизский | D39: 95608000 | E39: Поселок Вершина Теи | F39: 95608169 | G39: 26824651 | H39: Красноярская дирекция по тепловодоснабжению | I39: 7708503727 | J39: 246645014 | K39: производство (некомбинированная выработка)+передача+сбыт | L39: WARM
A40: 39 | B40: Республика Хакасия | C40: Аскизский | D40: 95608000 | E40: Поселок Вершина Теи | F40: 95608169 | G40: 30862516 | H40: МУП "ТКС" | I40: 1905012565 | J40: 190501001 | K40: Теплоноситель - Сбыт :: Производство :: Передача | L40: WARM
A41: 40 | B41: Республика Хакасия | C41: Аскизский | D41: 95608000 | E41: Поселок Вершина Теи | F41: 95608169 | G41: 30862516 | H41: МУП "ТКС" | I41: 1905012565 | J41: 190501001 | K41: производство (некомбинированная выработка)+передача+сбыт | L41: WARM
A42: 41 | B42: Республика Хакасия | C42: Аскизский | D42: 95608000 | E42: Поселок Вершина Теи | F42: 95608169 | G42: 30414471 | H42: МУП "Управляющая компания" | I42: 1905012244 | J42: 190501001 | K42: Теплоноситель - Сбыт :: Производство :: Передача | L42: WARM
A43: 42 | B43: Республика Хакасия | C43: Аскизский | D43: 95608000 | E43: Поселок Вершина Теи | F43: 95608169 | G43: 30414471 | H43: МУП "Управляющая компания" | I43: 1905012244 | J43: 190501001 | K43: производство (некомбинированная выработка)+передача+сбыт | L43: WARM
A44: 43 | B44: Республика Хакасия | C44: Аскизский | D44: 95608000 | E44: Поселок Вершина Теи | F44: 95608169 | G44: 26354667 | H44: ООО "Тейские энергосети" | I44: 1905008664 | J44: 190501001 | K44: производство (некомбинированная выработка)+передача+сбыт | L44: WARM
A45: 44 | B45: Республика Хакасия | C45: Аскизский | D45: 95608000 | E45: Поселок Вершина Теи | F45: 95608169 | G45: 28876026 | H45: ООО "УК ВСТМ г. Абаза" | I45: 1909001557 | J45: 190901001 | K45: производство (некомбинированная выработка)+передача+сбыт | L45: WARM
A46: 45 | B46: Республика Хакасия | C46: Аскизский | D46: 95608000 | E46: Пуланкольское | F46: 95608440 | G46: 26824651 | H46: Красноярская дирекция по тепловодоснабжению | I46: 7708503727 | J46: 246645014 | K46: производство (некомбинированная выработка)+передача+сбыт | L46: WARM
A47: 46 | B47: Республика Хакасия | C47: Аскизский | D47: 95608000 | E47: Пуланкольское | F47: 95608440 | G47: 28799585 | H47: ООО "ХакасГрадСтрой" | I47: 1905011875 | J47: 190501001 | K47: производство (некомбинированная выработка)+передача+сбыт | L47: WARM
A48: 47 | B48: Республика Хакасия | C48: Аскизский | D48: 95608000 | E48: Усть-Камыштинское | F48: 95608450 | G48: 26824651 | H48: Красноярская дирекция по тепловодоснабжению | I48: 7708503727 | J48: 246645014 | K48: производство (некомбинированная выработка)+передача+сбыт | L48: WARM
A49: 48 | B49: Республика Хакасия | C49: Аскизский | D49: 95608000 | E49: Усть-Камыштинское | F49: 95608450 | G49: 28799585 | H49: ООО "ХакасГрадСтрой" | I49: 1905011875 | J49: 190501001 | K49: производство (некомбинированная выработка)+передача+сбыт | L49: WARM
A50: 49 | B50: Республика Хакасия | C50: Аскизский | D50: 95608000 | E50: Усть-Чульское | F50: 95608455 | G50: 26824651 | H50: Красноярская дирекция по тепловодоснабжению | I50: 7708503727 | J50: 246645014 | K50: производство (некомбинированная выработка)+передача+сбыт | L50: WARM
A51: 50 | B51: Республика Хакасия | C51: Аскизский | D51: 95608000 | E51: Усть-Чульское | F51: 95608455 | G51: 28799585 | H51: ООО "ХакасГрадСтрой" | I51: 1905011875 | J51: 190501001 | K51: производство (некомбинированная выработка)+передача+сбыт | L51: WARM
A52: 51 | B52: Республика Хакасия | C52: Бейский | D52: 95612000 | E52: Бейское | F52: 95612405 | G52: 26354647 | H52: ГОУ НПО ПУ №15 с.Бея | I52: 1902064678 | J52: 190201001 | K52: производство (некомбинированная выработка)+передача+сбыт | L52: WARM
A53: 52 | B53: Республика Хакасия | C53: Бейский | D53: 95612000 | E53: Бейское | F53: 95612405 | G53: 26441289 | H53: МУП "Теплосеть" с.Бея | I53: 1902024932 | J53: 190201001 | K53: производство (некомбинированная выработка)+передача+сбыт | L53: WARM
A54: 53 | B54: Республика Хакасия | C54: Бейский | D54: 95612000 | E54: Бейское | F54: 95612405 | G54: 28873531 | H54: ООО "Теплоресурс" | I54: 1906004581 | J54: 190601001 | K54: производство (некомбинированная выработка)+передача+сбыт | L54: WARM
A55: 54 | B55: Республика Хакасия | C55: Бейский | D55: 95612000 | E55: Кирбинское | F55: 95612425 | G55: 26442225 | H55: МУП ЖКХ "Железнодорожник" | I55: 1902024266 | J55: 190201001 | K55: производство (некомбинированная выработка)+передача+сбыт | L55: WARM
A56: 55 | B56: Республика Хакасия | C56: Бейский | D56: 95612000 | E56: Новоенисейское | F56: 95612440 | G56: 28453999 | H56: МУП "Новоенисейские теплосети" | I56: 1906004422 | J56: 190601001 | K56: производство (некомбинированная выработка)+передача+сбыт | L56: WARM
A57: 56 | B57: Республика Хакасия | C57: Бейский | D57: 95612000 | E57: Новоенисейское | F57: 95612440 | G57: 30355688 | H57: МУП "Теплоресурс" с. Новоенисейка | I57: 1906004648 | J57: 190601001 | K57: производство (некомбинированная выработка)+передача | L57: WARM
A58: 57 | B58: Республика Хакасия | C58: Бейский | D58: 95612000 | E58: Новоенисейское | F58: 95612440 | G58: 30355688 | H58: МУП "Теплоресурс" с. Новоенисейка | I58: 1906004648 | J58: 190601001 | K58: производство (некомбинированная выработка)+передача+сбыт | L58: WARM
A59: 58 | B59: Республика Хакасия | C59: Бейский | D59: 95612000 | E59: Новоенисейское | F59: 95612440 | G59: 26354671 | H59: МУП ЖКХ с.Новоенисейка | I59: 1906005539 | J59: 190601001 | K59: производство (некомбинированная выработка)+передача+сбыт | L59: WARM
A60: 59 | B60: Республика Хакасия | C60: Боградский | D60: 95615000 | E60: Боградское | F60: 95615410 | G60: 26522906 | H60: ГУП "Хакресводоканал" | I60: 1901001202 | J60: 191001001 | K60: производство (некомбинированная выработка)+передача+сбыт | L60: WARM
A61: 60 | B61: Республика Хакасия | C61: Боградский | D61: 95615000 | E61: Боградское | F61: 95615410 | G61: 26824651 | H61: Красноярская дирекция по тепловодоснабжению | I61: 7708503727 | J61: 246645014 | K61: производство (некомбинированная выработка)+передача+сбыт | L61: WARM
A62: 61 | B62: Республика Хакасия | C62: Боградский | D62: 95615000 | E62: Боградское | F62: 95615410 | G62: 26370737 | H62: МУП "Боградский "Коммунальник" (с.Боград, с.Сон) | I62: 1907001008 | J62: 190701001 | K62: производство (некомбинированная выработка)+передача+сбыт | L62: WARM
A63: 62 | B63: Республика Хакасия | C63: Боградский | D63: 95615000 | E63: Боградское | F63: 95615410 | G63: 28873027 | H63: ООО "Водоканал Боградского района" | I63: 1907004094 | J63: 190701001 | K63: производство (некомбинированная выработка)+передача+сбыт | L63: WARM
A64: 63 | B64: Республика Хакасия | C64: Боградский | D64: 95615000 | E64: Боградское | F64: 95615410 | G64: 28422399 | H64: ООО "Хакасресводоканал Боградского района" | I64: 1907004062 | J64: 190701001 | K64: производство (некомбинированная выработка)+передача+сбыт | L64: WARM
A65: 64 | B65: Республика Хакасия | C65: Боградский | D65: 95615000 | E65: Бородинское | F65: 95615420 | G65: 26522906 | H65: ГУП "Хакресводоканал" | I65: 1901001202 | J65: 191001001 | K65: производство (некомбинированная выработка)+передача+сбыт | L65: WARM
A66: 65 | B66: Республика Хакасия | C66: Боградский | D66: 95615000 | E66: Бородинское | F66: 95615420 | G66: 26824651 | H66: Красноярская дирекция по тепловодоснабжению | I66: 7708503727 | J66: 246645014 | K66: производство (некомбинированная выработка)+передача+сбыт | L66: WARM
A67: 66 | B67: Республика Хакасия | C67: Боградский | D67: 95615000 | E67: Бородинское | F67: 95615420 | G67: 28873027 | H67: ООО "Водоканал Боградского района" | I67: 1907004094 | J67: 190701001 | K67: производство (некомбинированная выработка)+передача+сбыт | L67: WARM
A68: 67 | B68: Республика Хакасия | C68: Боградский | D68: 95615000 | E68: Бородинское | F68: 95615420 | G68: 28494698 | H68: ООО "Территория" | I68: 2459017901 | J68: 245901001 | K68: производство (некомбинированная выработка)+передача+сбыт | L68: WARM
A69: 68 | B69: Республика Хакасия | C69: Боградский | D69: 95615000 | E69: Бородинское | F69: 95615420 | G69: 28422399 | H69: ООО "Хакасресводоканал Боградского района" | I69: 1907004062 | J69: 190701001 | K69: производство (некомбинированная выработка)+передача+сбыт | L69: WARM
A70: 69 | B70: Республика Хакасия | C70: Боградский | D70: 95615000 | E70: Знаменское | F70: 95615430 | G70: 28494698 | H70: ООО "Территория" | I70: 2459017901 | J70: 245901001 | K70: производство (некомбинированная выработка)+передача+сбыт | L70: WARM
A71: 70 | B71: Республика Хакасия | C71: Боградский | D71: 95615000 | E71: Первомайское | F71: 95615440 | G71: 28494698 | H71: ООО "Территория" | I71: 2459017901 | J71: 245901001 | K71: производство (некомбинированная выработка)+передача+сбыт | L71: WARM
A72: 71 | B72: Республика Хакасия | C72: Боградский | D72: 95615000 | E72: Пушновское | F72: 95615445 | G72: 28873086 | H72: МБУ ЖКХ и БО "Пушновское" | I72: 1907004136 | J72: 190701001 | K72: производство (некомбинированная выработка)+передача+сбыт | L72: WARM
A73: 72 | B73: Республика Хакасия | C73: Боградский | D73: 95615000 | E73: Сарагашское | F73: 95615450 | G73: 28048657 | H73: МБУ ЖКХ БО "Сарагашское" | I73: 1907002925 | J73: 190701001 | K73: производство (некомбинированная выработка)+передача+сбыт | L73: WARM
A74: 73 | B74: Республика Хакасия | C74: Боградский | D74: 95615000 | E74: Сонское | F74: 95615460 | G74: 26522906 | H74: ГУП "Хакресводоканал" | I74: 1901001202 | J74: 191001001 | K74: производство (некомбинированная выработка)+передача+сбыт | L74: WARM
A75: 74 | B75: Республика Хакасия | C75: Боградский | D75: 95615000 | E75: Сонское | F75: 95615460 | G75: 26824651 | H75: Красноярская дирекция по тепловодоснабжению | I75: 7708503727 | J75: 246645014 | K75: производство (некомбинированная выработка)+передача+сбыт | L75: WARM
A76: 75 | B76: Республика Хакасия | C76: Боградский | D76: 95615000 | E76: Сонское | F76: 95615460 | G76: 28873027 | H76: ООО "Водоканал Боградского района" | I76: 1907004094 | J76: 190701001 | K76: производство (некомбинированная выработка)+передача+сбыт | L76: WARM
A77: 76 | B77: Республика Хакасия | C77: Боградский | D77: 95615000 | E77: Сонское | F77: 95615460 | G77: 28422399 | H77: ООО "Хакасресводоканал Боградского района" | I77: 1907004062 | J77: 190701001 | K77: производство (некомбинированная выработка)+передача+сбыт | L77: WARM
A78: 77 | B78: Республика Хакасия | C78: Орджоникидзевский | D78: 95620000 | E78: Копьёвский поссовет | F78: 95620403 | G78: 26523591 | H78: ГУП РХ "Орджоникидзевское ДРСУ" | I78: 1908000166 | J78: 190801001 | K78: производство (некомбинированная выработка)+передача+сбыт | L78: WARM
A79: 78 | B79: Республика Хакасия | C79: Орджоникидзевский | D79: 95620000 | E79: Копьёвский поссовет | F79: 95620403 | G79: 26824651 | H79: Красноярская дирекция по тепловодоснабжению | I79: 7708503727 | J79: 246645014 | K79: производство (некомбинированная выработка)+передача+сбыт | L79: WARM
A80: 79 | B80: Республика Хакасия | C80: Орджоникидзевский | D80: 95620000 | E80: Копьёвский поссовет | F80: 95620403 | G80: 26354673 | H80: МУП "Копьевское ЖКХ" | I80: 1908003015 | J80: 190801001 | K80: производство (некомбинированная выработка)+передача+сбыт | L80: WARM
A81: 80 | B81: Республика Хакасия | C81: Орджоникидзевский | D81: 95620000 | E81: Копьёвский сельсовет | F81: 95620420 | G81: 26824651 | H81: Красноярская дирекция по тепловодоснабжению | I81: 7708503727 | J81: 246645014 | K81: производство (некомбинированная выработка)+передача+сбыт | L81: WARM
A82: 81 | B82: Республика Хакасия | C82: Орджоникидзевский | D82: 95620000 | E82: Красноиюсское | F82: 95620425 | G82: 26824651 | H82: Красноярская дирекция по тепловодоснабжению | I82: 7708503727 | J82: 246645014 | K82: производство (некомбинированная выработка)+передача+сбыт | L82: WARM
A83: 82 | B83: Республика Хакасия | C83: Орджоникидзевский | D83: 95620000 | E83: Красноиюсское | F83: 95620425 | G83: 26354676 | H83: МКП"Красноиюсское ЖКХ" | I83: 1908003390 | J83: 190801001 | K83: производство (некомбинированная выработка)+передача+сбыт | L83: WARM
A84: 83 | B84: Республика Хакасия | C84: Орджоникидзевский | D84: 95620000 | E84: Новомарьясовское | F84: 95620430 | G84: 26824651 | H84: Красноярская дирекция по тепловодоснабжению | I84: 7708503727 | J84: 246645014 | K84: производство (некомбинированная выработка)+передача+сбыт | L84: WARM
A85: 84 | B85: Республика Хакасия | C85: Орджоникидзевский | D85: 95620000 | E85: Приисковое | F85: 95620437 | G85: 26824651 | H85: Красноярская дирекция по тепловодоснабжению | I85: 7708503727 | J85: 246645014 | K85: производство (некомбинированная выработка)+передача+сбыт | L85: WARM
A86: 85 | B86: Республика Хакасия | C86: Орджоникидзевский | D86: 95620000 | E86: Приисковое | F86: 95620437 | G86: 26354674 | H86: МКП "Приисковое ЖКХ" | I86: 1908003135 | J86: 190801001 | K86: производство (некомбинированная выработка)+передача+сбыт | L86: WARM
A87: 86 | B87: Республика Хакасия | C87: Орджоникидзевский | D87: 95620000 | E87: Устинкинское | F87: 95620450 | G87: 26824651 | H87: Красноярская дирекция по тепловодоснабжению | I87: 7708503727 | J87: 246645014 | K87: производство (некомбинированная выработка)+передача+сбыт | L87: WARM
A88: 87 | B88: Республика Хакасия | C88: Орджоникидзевский | D88: 95620000 | E88: Устинкинское | F88: 95620450 | G88: 26354675 | H88: МКП "Устинкинское ЖКХ" | I88: 1908003382 | J88: 190801001 | K88: производство (некомбинированная выработка)+передача+сбыт | L88: WARM
A89: 88 | B89: Республика Хакасия | C89: Орджоникидзевский | D89: 95620000 | E89: с. Орджоникидзевское | F89: 95620435 | G89: 26824651 | H89: Красноярская дирекция по тепловодоснабжению | I89: 7708503727 | J89: 246645014 | K89: производство (некомбинированная выработка)+передача+сбыт | L89: WARM
A90: 89 | B90: Республика Хакасия | C90: Орджоникидзевский | D90: 95620000 | E90: с. Орджоникидзевское | F90: 95620435 | G90: 27568130 | H90: МКП "Орджоникидзевское ЖКХ" | I90: 1908003600 | J90: 190801001 | K90: производство (некомбинированная выработка)+передача+сбыт | L90: WARM
A91: 90 | B91: Республика Хакасия | C91: Таштыпский | D91: 95625000 | E91: Таштыпское | F91: 95625440 | G91: 26354678 | H91: ГБОУ НПО ПУ-16 с.Таштып | I91: 1909010142 | J91: 190901001 | K91: производство (некомбинированная выработка)+передача+сбыт | L91: WARM
A92: 91 | B92: Республика Хакасия | C92: Таштыпский | D92: 95625000 | E92: Таштыпское | F92: 95625440 | G92: 26824651 | H92: Красноярская дирекция по тепловодоснабжению | I92: 7708503727 | J92: 246645014 | K92: производство (некомбинированная выработка)+передача+сбыт | L92: WARM
A93: 92 | B93: Республика Хакасия | C93: Таштыпский | D93: 95625000 | E93: Таштыпское | F93: 95625440 | G93: 26354677 | H93: МУП "ТЖКХ" | I93: 1909000391 | J93: 190901001 | K93: производство (некомбинированная выработка)+передача+сбыт | L93: WARM
A94: 93 | B94: Республика Хакасия | C94: Таштыпский | D94: 95625000 | E94: Таштыпское | F94: 95625440 | G94: 28460574 | H94: ООО "Тасхыл" | I94: 1909001677 | J94: 190901001 | K94: производство (некомбинированная выработка) | L94: WARM
A95: 94 | B95: Республика Хакасия | C95: Таштыпский | D95: 95625000 | E95: Таштыпское | F95: 95625440 | G95: 30801922 | H95: ООО "Таштыпэнерго" | I95: 1902026753 | J95: 190201001 | K95: производство (некомбинированная выработка)+передача+сбыт | L95: WARM
A96: 95 | B96: Республика Хакасия | C96: Усть-Абаканский | D96: 95630000 | E96: Вершино-Биджинское | F96: 95630405 | G96: 26824651 | H96: Красноярская дирекция по тепловодоснабжению | I96: 7708503727 | J96: 246645014 | K96: производство (некомбинированная выработка)+передача+сбыт | L96: WARM
A97: 96 | B97: Республика Хакасия | C97: Усть-Абаканский | D97: 95630000 | E97: Вершино-Биджинское | F97: 95630405 | G97: 26354698 | H97: МБУ ЖКХ "Вершина" | I97: 1910011006 | J97: 191001001 | K97: производство (некомбинированная выработка)+передача+сбыт | L97: WARM
A98: 97 | B98: Республика Хакасия | C98: Усть-Абаканский | D98: 95630000 | E98: Доможаковское | F98: 95630415 | G98: 26824651 | H98: Красноярская дирекция по тепловодоснабжению | I98: 7708503727 | J98: 246645014 | K98: производство (некомбинированная выработка)+передача+сбыт | L98: WARM
A99: 98 | B99: Республика Хакасия | C99: Усть-Абаканский | D99: 95630000 | E99: Доможаковское | F99: 95630415 | G99: 26354686 | H99: МБУ ЖКХ "ТЭМП" | I99: 1910011060 | J99: 191001001 | K99: производство (некомбинированная выработка)+передача+сбыт | L99: WARM
A100: 99 | B100: Республика Хакасия | C100: Усть-Абаканский | D100: 95630000 | E100: Московское | F100: 95630430 | G100: 26824651 | H100: Красноярская дирекция по тепловодоснабжению | I100: 7708503727 | J100: 246645014 | K100: производство (некомбинированная выработка)+передача+сбыт | L100: WARM
A101: 100 | B101: Республика Хакасия | C101: Усть-Абаканский | D101: 95630000 | E101: Опытненское | F101: 95630435 | G101: 26824651 | H101: Красноярская дирекция по тепловодоснабжению | I101: 7708503727 | J101: 246645014 | K101: производство (некомбинированная выработка)+передача+сбыт | L101: WARM
A102: 101 | B102: Республика Хакасия | C102: Усть-Абаканский | D102: 95630000 | E102: Опытненское | F102: 95630435 | G102: 28012491 | H102: ООО "Прогресс-Сервис" | I102: 1910010891 | J102: 191001001 | K102: производство (некомбинированная выработка)+передача+сбыт | L102: WARM
A103: 102 | B103: Республика Хакасия | C103: Усть-Абаканский | D103: 95630000 | E103: Поселок Усть-Абакан | F103: 95630151 | G103: 26522906 | H103: ГУП "Хакресводоканал" | I103: 1901001202 | J103: 191001001 | K103: производство (некомбинированная выработка)+передача+сбыт | L103: WARM
A104: 103 | B104: Республика Хакасия | C104: Усть-Абаканский | D104: 95630000 | E104: Поселок Усть-Абакан | F104: 95630151 | G104: 26824651 | H104: Красноярская дирекция по тепловодоснабжению | I104: 7708503727 | J104: 246645014 | K104: производство (некомбинированная выработка)+передача+сбыт | L104: WARM
A105: 104 | B105: Республика Хакасия | C105: Усть-Абаканский | D105: 95630000 | E105: Поселок Усть-Абакан | F105: 95630151 | G105: 28012491 | H105: ООО "Прогресс-Сервис" | I105: 1910010891 | J105: 191001001 | K105: производство (некомбинированная выработка)+передача+сбыт | L105: WARM
A106: 105 | B106: Республика Хакасия | C106: Усть-Абаканский | D106: 95630000 | E106: Поселок Усть-Абакан | F106: 95630151 | G106: 26354684 | H106: ООО "ТВК Усть-Абакан" | I106: 1910012384 | J106: 191001001 | K106: производство (некомбинированная выработка)+передача+сбыт | L106: WARM
A107: 106 | B107: Республика Хакасия | C107: Усть-Абаканский | D107: 95630000 | E107: Поселок Усть-Абакан | F107: 95630151 | G107: 26354680 | H107: ФКУ Абаканская воспитательная колония УФСИН России по РХ | I107: 1910000043 | J107: 191001001 | K107: производство (некомбинированная выработка)+передача+сбыт | L107: WARM
A108: 107 | B108: Республика Хакасия | C108: Усть-Абаканский | D108: 95630000 | E108: Райковское | F108: 95630440 | G108: 26824651 | H108: Красноярская дирекция по тепловодоснабжению | I108: 7708503727 | J108: 246645014 | K108: производство (некомбинированная выработка)+передача+сбыт | L108: WARM
A109: 108 | B109: Республика Хакасия | C109: Усть-Абаканский | D109: 95630000 | E109: Расцветовское | F109: 95630445 | G109: 26824651 | H109: Красноярская дирекция по тепловодоснабжению | I109: 7708503727 | J109: 246645014 | K109: производство (некомбинированная выработка)+передача+сбыт | L109: WARM
A110: 109 | B110: Республика Хакасия | C110: Усть-Абаканский | D110: 95630000 | E110: Расцветовское | F110: 95630445 | G110: 28873506 | H110: ООО "ТеплоТранс" | I110: 1910013155 | J110: 191001001 | K110: производство (некомбинированная выработка)+передача+сбыт | L110: WARM
A111: 110 | B111: Республика Хакасия | C111: Усть-Абаканский | D111: 95630000 | E111: Расцветовское | F111: 95630445 | G111: 28464053 | H111: ООО "Термолайн" | I111: 1910012810 | J111: 191001001 | K111: производство (некомбинированная выработка)+передача+сбыт | L111: WARM
A112: 111 | B112: Республика Хакасия | C112: Усть-Абаканский | D112: 95630000 | E112: Расцветовское | F112: 95630445 | G112: 30401233 | H112: ООО "УК Хорс" | I112: 2465132282 | J112: 246501001 | K112: Теплоноситель - Сбыт :: Производство :: Передача | L112: WARM
A113: 112 | B113: Республика Хакасия | C113: Усть-Абаканский | D113: 95630000 | E113: Расцветовское | F113: 95630445 | G113: 30401233 | H113: ООО "УК Хорс" | I113: 2465132282 | J113: 246501001 | K113: производство (некомбинированная выработка)+передача+сбыт | L113: WARM
A114: 113 | B114: Республика Хакасия | C114: Усть-Абаканский | D114: 95630000 | E114: Солнечное | F114: 95630460 | G114: 26824651 | H114: Красноярская дирекция по тепловодоснабжению | I114: 7708503727 | J114: 246645014 | K114: производство (некомбинированная выработка)+передача+сбыт | L114: WARM
A115: 114 | B115: Республика Хакасия | C115: Усть-Абаканский | D115: 95630000 | E115: Солнечное | F115: 95630460 | G115: 26581857 | H115: МБУ "Теплоснаб" | I115: 1910011743 | J115: 191001001 | K115: производство (некомбинированная выработка)+передача+сбыт | L115: WARM
A116: 115 | B116: Республика Хакасия | C116: Усть-Абаканский | D116: 95630000 | E116: Усть-Бюрское | F116: 95630465 | G116: 26824651 | H116: Красноярская дирекция по тепловодоснабжению | I116: 7708503727 | J116: 246645014 | K116: производство (некомбинированная выработка)+передача+сбыт | L116: WARM
A117: 116 | B117: Республика Хакасия | C117: Усть-Абаканский | D117: 95630000 | E117: Чарковское | F117: 95630470 | G117: 26824651 | H117: Красноярская дирекция по тепловодоснабжению | I117: 7708503727 | J117: 246645014 | K117: производство (некомбинированная выработка)+передача+сбыт | L117: WARM
A118: 117 | B118: Республика Хакасия | C118: Усть-Абаканский | D118: 95630000 | E118: Чарковское | F118: 95630470 | G118: 26354685 | H118: МБУ ЖКХ "Чарки" | I118: 1910011052 | J118: 191001001 | K118: производство (некомбинированная выработка)+передача+сбыт | L118: WARM
A119: 118 | B119: Республика Хакасия | C119: Ширинский | D119: 95635000 | E119: Борцовское | F119: 95635410 | G119: 26824651 | H119: Красноярская дирекция по тепловодоснабжению | I119: 7708503727 | J119: 246645014 | K119: производство (некомбинированная выработка)+передача+сбыт | L119: WARM
A120: 119 | B120: Республика Хакасия | C120: Ширинский | D120: 95635000 | E120: Борцовское | F120: 95635410 | G120: 26354694 | H120: ООО "Коммунальное хозяйство "Борец" | I120: 1911008084 | J120: 191101001 | K120: производство (некомбинированная выработка)+передача+сбыт | L120: WARM
A121: 120 | B121: Республика Хакасия | C121: Ширинский | D121: 95635000 | E121: Борцовское | F121: 95635410 | G121: 30388793 | H121: ООО "ТВР" | I121: 1911008729 | J121: 191101001 | K121: Теплоноситель - Сбыт | L121: WARM
A122: 121 | B122: Республика Хакасия | C122: Ширинский | D122: 95635000 | E122: Борцовское | F122: 95635410 | G122: 30388793 | H122: ООО "ТВР" | I122: 1911008729 | J122: 191101001 | K122: производство (некомбинированная выработка) | L122: WARM
A123: 122 | B123: Республика Хакасия | C123: Ширинский | D123: 95635000 | E123: Борцовское | F123: 95635410 | G123: 30388793 | H123: ООО "ТВР" | I123: 1911008729 | J123: 191101001 | K123: производство (некомбинированная выработка)+передача+сбыт | L123: WARM
A124: 123 | B124: Республика Хакасия | C124: Ширинский | D124: 95635000 | E124: Борцовское | F124: 95635410 | G124: 30864933 | H124: ООО "ТеплоСети" | I124: 1903025544 | J124: 190301001 | K124: Теплоноситель - Сбыт :: Производство :: Передача | L124: WARM
A125: 124 | B125: Республика Хакасия | C125: Ширинский | D125: 95635000 | E125: Борцовское | F125: 95635410 | G125: 30864933 | H125: ООО "ТеплоСети" | I125: 1903025544 | J125: 190301001 | K125: производство (некомбинированная выработка)+передача+сбыт | L125: WARM
A126: 125 | B126: Республика Хакасия | C126: Ширинский | D126: 95635000 | E126: Борцовское | F126: 95635410 | G126: 28872996 | H126: ООО "Хакресводоканал Ширинского района" | I126: 1911008542 | J126: 191101001 | K126: производство (некомбинированная выработка)+передача+сбыт | L126: WARM
A127: 126 | B127: Республика Хакасия | C127: Ширинский | D127: 95635000 | E127: Жемчужненский сельсовет | F127: 95635430 | G127: 28870673 | H127: ООО "Фирма "Ригор" | I127: 2466095756 | J127: 246601001 | K127: Теплоноситель - Сбыт :: Производство :: Передача | L127: WARM
A128: 127 | B128: Республика Хакасия | C128: Ширинский | D128: 95635000 | E128: Жемчужненский сельсовет | F128: 95635430 | G128: 28870673 | H128: ООО "Фирма "Ригор" | I128: 2466095756 | J128: 246601001 | K128: производство (некомбинированная выработка)+передача+сбыт | L128: WARM
A129: 128 | B129: Республика Хакасия | C129: Ширинский | D129: 95635000 | E129: Коммунаровский сельсовет | F129: 95635401 | G129: 26522906 | H129: ГУП "Хакресводоканал" | I129: 1901001202 | J129: 191001001 | K129: производство (некомбинированная выработка)+передача+сбыт | L129: WARM
A130: 129 | B130: Республика Хакасия | C130: Ширинский | D130: 95635000 | E130: Коммунаровский сельсовет | F130: 95635401 | G130: 26824651 | H130: Красноярская дирекция по тепловодоснабжению | I130: 7708503727 | J130: 246645014 | K130: производство (некомбинированная выработка)+передача+сбыт | L130: WARM
A131: 130 | B131: Республика Хакасия | C131: Ширинский | D131: 95635000 | E131: Коммунаровский сельсовет | F131: 95635401 | G131: 26354688 | H131: ОАО "Коммунаровский рудник" | I131: 1911000014 | J131: 191101001 | K131: производство (некомбинированная выработка)+передача+сбыт | L131: WARM
A132: 131 | B132: Республика Хакасия | C132: Ширинский | D132: 95635000 | E132: Коммунаровский сельсовет | F132: 95635401 | G132: 30388793 | H132: ООО "ТВР" | I132: 1911008729 | J132: 191101001 | K132: Теплоноситель - Производство | L132: WARM
A133: 132 | B133: Республика Хакасия | C133: Ширинский | D133: 95635000 | E133: Коммунаровский сельсовет | F133: 95635401 | G133: 30388793 | H133: ООО "ТВР" | I133: 1911008729 | J133: 191101001 | K133: Теплоноситель - Сбыт :: Производство | L133: WARM
A134: 133 | B134: Республика Хакасия | C134: Ширинский | D134: 95635000 | E134: Коммунаровский сельсовет | F134: 95635401 | G134: 30388793 | H134: ООО "ТВР" | I134: 1911008729 | J134: 191101001 | K134: производство (некомбинированная выработка) | L134: WARM
A135: 134 | B135: Республика Хакасия | C135: Ширинский | D135: 95635000 | E135: Коммунаровский сельсовет | F135: 95635401 | G135: 30388793 | H135: ООО "ТВР" | I135: 1911008729 | J135: 191101001 | K135: производство (некомбинированная выработка)+передача+сбыт | L135: WARM
A136: 135 | B136: Республика Хакасия | C136: Ширинский | D136: 95635000 | E136: Коммунаровский сельсовет | F136: 95635401 | G136: 30864933 | H136: ООО "ТеплоСети" | I136: 1903025544 | J136: 190301001 | K136: Теплоноситель - Сбыт :: Производство :: Передача | L136: WARM
A137: 136 | B137: Республика Хакасия | C137: Ширинский | D137: 95635000 | E137: Коммунаровский сельсовет | F137: 95635401 | G137: 30864933 | H137: ООО "ТеплоСети" | I137: 1903025544 | J137: 190301001 | K137: производство (некомбинированная выработка)+передача+сбыт | L137: WARM
A138: 137 | B138: Республика Хакасия | C138: Ширинский | D138: 95635000 | E138: Коммунаровский сельсовет | F138: 95635401 | G138: 28422385 | H138: ООО "Хакасресводоканал Ширинского района" | I138: 1911008422 | J138: 191101001 | K138: производство (некомбинированная выработка)+передача+сбыт | L138: WARM
A139: 138 | B139: Республика Хакасия | C139: Ширинский | D139: 95635000 | E139: Коммунаровский сельсовет | F139: 95635401 | G139: 28872996 | H139: ООО "Хакресводоканал Ширинского района" | I139: 1911008542 | J139: 191101001 | K139: производство (некомбинированная выработка)+передача+сбыт | L139: WARM
A140: 139 | B140: Республика Хакасия | C140: Ширинский | D140: 95635000 | E140: Поселок Жемчужный | F140: 95635155 | G140: 26522906 | H140: ГУП "Хакресводоканал" | I140: 1901001202 | J140: 191001001 | K140: производство (некомбинированная выработка)+передача+сбыт | L140: WARM
A141: 140 | B141: Республика Хакасия | C141: Ширинский | D141: 95635000 | E141: Поселок Жемчужный | F141: 95635155 | G141: 26824651 | H141: Красноярская дирекция по тепловодоснабжению | I141: 7708503727 | J141: 246645014 | K141: производство (некомбинированная выработка)+передача+сбыт | L141: WARM
A142: 141 | B142: Республика Хакасия | C142: Ширинский | D142: 95635000 | E142: Поселок Жемчужный | F142: 95635155 | G142: 26354690 | H142: МЗ ФГУ "Детский санаторий "Озеро Шира" | I142: 1911000656 | J142: 191101001 | K142: производство (некомбинированная выработка)+передача+сбыт | L142: WARM
A143: 142 | B143: Республика Хакасия | C143: Ширинский | D143: 95635000 | E143: Поселок Жемчужный | F143: 95635155 | G143: 26354695 | H143: ООО "Коммунальное хозяйство "Жемчужное" | I143: 1911007884 | J143: 191101001 | K143: производство (некомбинированная выработка)+передача+сбыт | L143: WARM
A144: 143 | B144: Республика Хакасия | C144: Ширинский | D144: 95635000 | E144: Поселок Жемчужный | F144: 95635155 | G144: 28870673 | H144: ООО "Фирма "Ригор" | I144: 2466095756 | J144: 246601001 | K144: производство (некомбинированная выработка)+передача+сбыт | L144: WARM
A145: 144 | B145: Республика Хакасия | C145: Ширинский | D145: 95635000 | E145: Поселок Жемчужный | F145: 95635155 | G145: 28422385 | H145: ООО "Хакасресводоканал Ширинского района" | I145: 1911008422 | J145: 191101001 | K145: производство (некомбинированная выработка)+передача+сбыт | L145: WARM
A146: 145 | B146: Республика Хакасия | C146: Ширинский | D146: 95635000 | E146: Соленоозерное | F146: 95635438 | G146: 26824651 | H146: Красноярская дирекция по тепловодоснабжению | I146: 7708503727 | J146: 246645014 | K146: производство (некомбинированная выработка)+передача+сбыт | L146: WARM
A147: 146 | B147: Республика Хакасия | C147: Ширинский | D147: 95635000 | E147: Соленоозерное | F147: 95635438 | G147: 27568286 | H147: МУП с.Соленоозерное ЖКХ "Коммунальщик" | I147: 1911007362 | J147: 191101001 | K147: Передача+Сбыт | L147: WARM
A148: 147 | B148: Республика Хакасия | C148: Ширинский | D148: 95635000 | E148: Соленоозерное | F148: 95635438 | G148: 27568286 | H148: МУП с.Соленоозерное ЖКХ "Коммунальщик" | I148: 1911007362 | J148: 191101001 | K148: производство комбинированная выработка | L148: WARM
A149: 148 | B149: Республика Хакасия | C149: Ширинский | D149: 95635000 | E149: Туимский сельсовет | F149: 95635403 | G149: 26522906 | H149: ГУП "Хакресводоканал" | I149: 1901001202 | J149: 191001001 | K149: производство (некомбинированная выработка)+передача+сбыт | L149: WARM
A150: 149 | B150: Республика Хакасия | C150: Ширинский | D150: 95635000 | E150: Туимский сельсовет | F150: 95635403 | G150: 26824651 | H150: Красноярская дирекция по тепловодоснабжению | I150: 7708503727 | J150: 246645014 | K150: производство (некомбинированная выработка)+передача+сбыт | L150: WARM
A151: 150 | B151: Республика Хакасия | C151: Ширинский | D151: 95635000 | E151: Туимский сельсовет | F151: 95635403 | G151: 28422385 | H151: ООО "Хакасресводоканал Ширинского района" | I151: 1911008422 | J151: 191101001 | K151: производство (некомбинированная выработка)+передача+сбыт | L151: WARM
A152: 151 | B152: Республика Хакасия | C152: Ширинский | D152: 95635000 | E152: Туимский сельсовет | F152: 95635403 | G152: 28872996 | H152: ООО "Хакресводоканал Ширинского района" | I152: 1911008542 | J152: 191101001 | K152: производство (некомбинированная выработка)+передача+сбыт | L152: WARM
A153: 152 | B153: Республика Хакасия | C153: Ширинский | D153: 95635000 | E153: Туимский сельсовет | F153: 95635403 | G153: 30388824 | H153: ООО УК "Наш дом" | I153: 1911008302 | J153: 191101001 | K153: Теплоноситель - Сбыт :: Производство :: Передача | L153: WARM
A154: 153 | B154: Республика Хакасия | C154: Ширинский | D154: 95635000 | E154: Туимский сельсовет | F154: 95635403 | G154: 30388824 | H154: ООО УК "Наш дом" | I154: 1911008302 | J154: 191101001 | K154: производство (некомбинированная выработка)+передача+сбыт | L154: WARM
A155: 154 | B155: Республика Хакасия | C155: Ширинский | D155: 95635000 | E155: Фыркальское | F155: 95635450 | G155: 26824651 | H155: Красноярская дирекция по тепловодоснабжению | I155: 7708503727 | J155: 246645014 | K155: производство (некомбинированная выработка)+передача+сбыт | L155: WARM
A156: 155 | B156: Республика Хакасия | C156: Ширинский | D156: 95635000 | E156: Фыркальское | F156: 95635450 | G156: 26961082 | H156: МУП ЖКХ "ВодТехСервис" | I156: 1911008038 | J156: 191101001 | K156: производство (некомбинированная выработка)+передача+сбыт | L156: WARM
A157: 156 | B157: Республика Хакасия | C157: Ширинский | D157: 95635000 | E157: Фыркальское | F157: 95635450 | G157: 30862195 | H157: МУП ЖКХ "Фыркал" | I157: 1903025520 | J157: 190301001 | K157: производство (некомбинированная выработка)+передача+сбыт | L157: WARM
A158: 157 | B158: Республика Хакасия | C158: Ширинский | D158: 95635000 | E158: Целинное | F158: 95635455 | G158: 26824651 | H158: Красноярская дирекция по тепловодоснабжению | I158: 7708503727 | J158: 246645014 | K158: производство (некомбинированная выработка)+передача+сбыт | L158: WARM
A159: 158 | B159: Республика Хакасия | C159: Ширинский | D159: 95635000 | E159: Целинное | F159: 95635455 | G159: 26354692 | H159: МУП "ЖКХ п.Целинное" | I159: 1911005816 | J159: 191101001 | K159: производство (некомбинированная выработка)+передача+сбыт | L159: WARM
A160: 159 | B160: Республика Хакасия | C160: Ширинский | D160: 95635000 | E160: Целинное | F160: 95635455 | G160: 30388793 | H160: ООО "ТВР" | I160: 1911008729 | J160: 191101001 | K160: Теплоноситель - Сбыт | L160: WARM
A161: 160 | B161: Республика Хакасия | C161: Ширинский | D161: 95635000 | E161: Целинное | F161: 95635455 | G161: 30388793 | H161: ООО "ТВР" | I161: 1911008729 | J161: 191101001 | K161: производство (некомбинированная выработка) | L161: WARM
A162: 161 | B162: Республика Хакасия | C162: Ширинский | D162: 95635000 | E162: Целинное | F162: 95635455 | G162: 30388793 | H162: ООО "ТВР" | I162: 1911008729 | J162: 191101001 | K162: производство (некомбинированная выработка)+передача+сбыт | L162: WARM
A163: 162 | B163: Республика Хакасия | C163: Ширинский | D163: 95635000 | E163: Целинное | F163: 95635455 | G163: 30864933 | H163: ООО "ТеплоСети" | I163: 1903025544 | J163: 190301001 | K163: Теплоноситель - Сбыт :: Производство :: Передача | L163: WARM
A164: 163 | B164: Республика Хакасия | C164: Ширинский | D164: 95635000 | E164: Целинное | F164: 95635455 | G164: 30864933 | H164: ООО "ТеплоСети" | I164: 1903025544 | J164: 190301001 | K164: производство (некомбинированная выработка)+передача+сбыт | L164: WARM
A165: 164 | B165: Республика Хакасия | C165: Ширинский | D165: 95635000 | E165: Целинное | F165: 95635455 | G165: 28872996 | H165: ООО "Хакресводоканал Ширинского района" | I165: 1911008542 | J165: 191101001 | K165: производство (некомбинированная выработка)+передача+сбыт | L165: WARM
A166: 165 | B166: Республика Хакасия | C166: Ширинский | D166: 95635000 | E166: Черноозерное | F166: 95635460 | G166: 26824651 | H166: Красноярская дирекция по тепловодоснабжению | I166: 7708503727 | J166: 246645014 | K166: производство (некомбинированная выработка)+передача+сбыт | L166: WARM
A167: 166 | B167: Республика Хакасия | C167: Ширинский | D167: 95635000 | E167: Ширинский сельсовет | F167: 95635404 | G167: 26522906 | H167: ГУП "Хакресводоканал" | I167: 1901001202 | J167: 191001001 | K167: производство (некомбинированная выработка)+передача+сбыт | L167: WARM
A168: 167 | B168: Республика Хакасия | C168: Ширинский | D168: 95635000 | E168: Ширинский сельсовет | F168: 95635404 | G168: 26824651 | H168: Красноярская дирекция по тепловодоснабжению | I168: 7708503727 | J168: 246645014 | K168: производство (некомбинированная выработка)+передача+сбыт | L168: WARM
A169: 168 | B169: Республика Хакасия | C169: Ширинский | D169: 95635000 | E169: Ширинский сельсовет | F169: 95635404 | G169: 26354693 | H169: ООО "Коммунальник" | I169: 1911007690 | J169: 191101001 | K169: производство (некомбинированная выработка)+передача+сбыт | L169: WARM
A170: 169 | B170: Республика Хакасия | C170: Ширинский | D170: 95635000 | E170: Ширинский сельсовет | F170: 95635404 | G170: 28870673 | H170: ООО "Фирма "Ригор" | I170: 2466095756 | J170: 246601001 | K170: Теплоноситель - Сбыт :: Производство :: Передача | L170: WARM
A171: 170 | B171: Республика Хакасия | C171: Ширинский | D171: 95635000 | E171: Ширинский сельсовет | F171: 95635404 | G171: 28870673 | H171: ООО "Фирма "Ригор" | I171: 2466095756 | J171: 246601001 | K171: производство (некомбинированная выработка)+передача+сбыт | L171: WARM
A172: 171 | B172: Республика Хакасия | C172: Ширинский | D172: 95635000 | E172: Ширинский сельсовет | F172: 95635404 | G172: 28422385 | H172: ООО "Хакасресводоканал Ширинского района" | I172: 1911008422 | J172: 191101001 | K172: производство (некомбинированная выработка)+передача+сбыт | L172: WARM
A173: 172 | B173: Республика Хакасия | C173: Ширинский | D173: 95635000 | E173: село Джирим | F173: 95635420 | G173: 28036643 | H173: МУП ЖКХ "Коммунальщик с.Джирим" | I173: 1911008310 | J173: 191101001 | K173: производство (некомбинированная выработка) | L173: WARM
A174: 173 | B174: Республика Хакасия | C174: город Абаза | D174: 95702000 | E174: город Абаза | F174: 95702000 | G174: 26522906 | H174: ГУП "Хакресводоканал" | I174: 1901001202 | J174: 191001001 | K174: производство (некомбинированная выработка)+передача+сбыт | L174: WARM
A175: 174 | B175: Республика Хакасия | C175: город Абаза | D175: 95702000 | E175: город Абаза | F175: 95702000 | G175: 26354679 | H175: ООО "Абаза-Энерго" | I175: 1909051981 | J175: 190901001 | K175: производство (некомбинированная выработка)+передача+сбыт | L175: WARM
A176: 175 | B176: Республика Хакасия | C176: город Абаза | D176: 95702000 | E176: город Абаза | F176: 95702000 | G176: 27753258 | H176: ООО "УК "Наш дом" | I176: 1909000585 | J176: 190901001 | K176: производство (некомбинированная выработка)+передача+сбыт | L176: WARM
A177: 176 | B177: Республика Хакасия | C177: город Абакан | D177: 95701000 | E177: город Абакан | F177: 95701000 | G177: 30406011 | H177: АО «ГУ ЖКХ» | I177: 5116000922 | J177: 246545001 | K177: Теплоноситель - Сбыт :: Производство :: Передача | L177: WARM
A178: 177 | B178: Республика Хакасия | C178: город Абакан | D178: 95701000 | E178: город Абакан | F178: 95701000 | G178: 30406011 | H178: АО «ГУ ЖКХ» | I178: 5116000922 | J178: 246545001 | K178: производство (некомбинированная выработка)+передача+сбыт | L178: WARM
A179: 178 | B179: Республика Хакасия | C179: город Абакан | D179: 95701000 | E179: город Абакан | F179: 95701000 | G179: 26522906 | H179: ГУП "Хакресводоканал" | I179: 1901001202 | J179: 191001001 | K179: производство (некомбинированная выработка)+передача+сбыт | L179: WARM
A180: 179 | B180: Республика Хакасия | C180: город Абакан | D180: 95701000 | E180: город Абакан | F180: 95701000 | G180: 26824651 | H180: Красноярская дирекция по тепловодоснабжению | I180: 7708503727 | J180: 246645014 | K180: производство (некомбинированная выработка)+передача+сбыт | L180: WARM
A181: 180 | B181: Республика Хакасия | C181: город Абакан | D181: 95701000 | E181: город Абакан | F181: 95701000 | G181: 26354638 | H181: МОУ ДОД "Спорт.оздор. база "Меридиан" | I181: 1901065679 | J181: 190101001 | K181: производство (некомбинированная выработка)+передача+сбыт | L181: WARM
A182: 181 | B182: Республика Хакасия | C182: город Абакан | D182: 95701000 | E182: город Абакан | F182: 95701000 | G182: 26450581 | H182: МП "Абаканские тепловые сети" | I182: 1901003640 | J182: 190101001 | K182: производство (некомбинированная выработка)+передача+сбыт | L182: WARM
A183: 182 | B183: Республика Хакасия | C183: город Абакан | D183: 95701000 | E183: город Абакан | F183: 95701000 | G183: 26354637 | H183: МУП "Управляющая жилищная компания" (электробойлерная ул.Мира) | I183: 1901069722 | J183: 190101001 | K183: производство (некомбинированная выработка)+сбыт | L183: WARM
A184: 183 | B184: Республика Хакасия | C184: город Абакан | D184: 95701000 | E184: город Абакан | F184: 95701000 | G184: 26358524 | H184: Мостоотряд-91 АФ ОАО "Сибмост" | I184: 5407127899 | J184: 190102001 | K184: производство (некомбинированная выработка)+передача+сбыт | L184: WARM
A185: 184 | B185: Республика Хакасия | C185: город Абакан | D185: 95701000 | E185: город Абакан | F185: 95701000 | G185: 28869185 | H185: ООО "Южно-Сибирская теплосетевая компания" | I185: 1901116531 | J185: 190101001 | K185: производство (некомбинированная выработка)+передача | L185: WARM
A186: 185 | B186: Республика Хакасия | C186: город Абакан | D186: 95701000 | E186: город Абакан | F186: 95701000 | G186: 26571178 | H186: Пассажирское вагонное депо Абакан – структурное подразделение Енисейского филиала ОАО «Федеральная пассажирская компания» | I186: 7708709686 | J186: 190145001 | K186: производство (некомбинированная выработка)+передача+сбыт | L186: WARM
A187: 186 | B187: Республика Хакасия | C187: город Абакан | D187: 95701000 | E187: город Абакан | F187: 95701000 | G187: 26449407 | H187: Свечинский районный телекоммуникационный узел (РТУ) Кировского филиала ОАО "Волгателеком" | I187: 5260901817 | J187: 432832002 | K187: производство (некомбинированная выработка)+передача+сбыт | L187: WARM
A188: 187 | B188: Республика Хакасия | C188: город Абакан | D188: 95701000 | E188: город Абакан | F188: 95701000 | G188: 26425314 | H188: Филиал "Абаканская ТЭЦ" АО "Енисейская ТГК (ТГК-13)" | I188: 1901067718 | J188: 190103001 | K188: Передача+Сбыт | L188: WARM
A189: 188 | B189: Республика Хакасия | C189: город Абакан | D189: 95701000 | E189: город Абакан | F189: 95701000 | G189: 26425314 | H189: Филиал "Абаканская ТЭЦ" АО "Енисейская ТГК (ТГК-13)" | I189: 1901067718 | J189: 190103001 | K189: Теплоноситель - Сбыт :: Производство :: Передача | L189: WARM
A190: 189 | B190: Республика Хакасия | C190: город Абакан | D190: 95701000 | E190: город Абакан | F190: 95701000 | G190: 26425314 | H190: Филиал "Абаканская ТЭЦ" АО "Енисейская ТГК (ТГК-13)" | I190: 1901067718 | J190: 190103001 | K190: производство комбинированная выработка | L190: WARM
A191: 190 | B191: Республика Хакасия | C191: город Абакан | D191: 95701000 | E191: город Абакан | F191: 95701000 | G191: 27568998 | H191: Филиал ОАО "Ремонтно-эксплуатационное управление" "Иркутский" Хакасия | I191: 7714783092 | J191: 381843001 | K191: производство (некомбинированная выработка)+передача+сбыт | L191: WARM
A192: 191 | B192: Республика Хакасия | C192: город Саяногорск | D192: 95708000 | E192: город Саяногорск | F192: 95708000 | G192: 27675852 | H192: АО "Мобильные ГТЭС" | I192: 7706627050 | J192: 190245001 | K192: производство комбинированная выработка | L192: WARM
A193: 192 | B193: Республика Хакасия | C193: город Саяногорск | D193: 95708000 | E193: город Саяногорск | F193: 95708000 | G193: 26354640 | H193: ИП Басков В.В. | I193: 190200321555 | J193: 190201001 | K193: производство (некомбинированная выработка) | L193: WARM
A194: 193 | B194: Республика Хакасия | C194: город Саяногорск | D194: 95708000 | E194: город Саяногорск | F194: 95708000 | G194: 26354643 | H194: МУП "Тепловые сети" | I194: 1902017371 | J194: 190201003 | K194: производство (некомбинированная выработка)+передача+сбыт | L194: WARM
A195: 194 | B195: Республика Хакасия | C195: город Саяногорск | D195: 95708000 | E195: город Саяногорск | F195: 95708000 | G195: 26354645 | H195: ОАО "СШ ТК РусГидро" | I195: 1902018248 | J195: 190201001 | K195: производство (некомбинированная выработка)+передача+сбыт | L195: WARM
A196: 195 | B196: Республика Хакасия | C196: город Саяногорск | D196: 95708000 | E196: город Саяногорск | F196: 95708000 | G196: 26354642 | H196: ООО "Теплоресурс" | I196: 1902015423 | J196: 190201001 | K196: производство (некомбинированная выработка)+передача+сбыт | L196: WARM
A197: 196 | B197: Республика Хакасия | C197: город Саяногорск | D197: 95708000 | E197: город Саяногорск | F197: 95708000 | G197: 28150844 | H197: ООО "Хакасские коммунальные системы" | I197: 1902024682 | J197: 190201001 | K197: производство (некомбинированная выработка) | L197: WARM
A198: 197 | B198: Республика Хакасия | C198: город Саяногорск | D198: 95708000 | E198: город Саяногорск | F198: 95708000 | G198: 27568933 | H198: ОП ЗАО "Байкалэнерго" - "Саяногорские тепловые сети" | I198: 3808108339 | J198: 381201001 | K198: производство (некомбинированная выработка)+передача+сбыт | L198: WARM
A199: 198 | B199: Республика Хакасия | C199: город Сорск | D199: 95709000 | E199: город Сорск | F199: 95709000 | G199: 26522906 | H199: ГУП "Хакресводоканал" | I199: 1901001202 | J199: 191001001 | K199: производство (некомбинированная выработка)+передача+сбыт | L199: WARM
A200: 199 | B200: Республика Хакасия | C200: город Сорск | D200: 95709000 | E200: город Сорск | F200: 95709000 | G200: 28975239 | H200: МУП "Коммунальные системы" | I200: 1910013229 | J200: 191001001 | K200: производство (некомбинированная выработка)+передача+сбыт | L200: WARM
... 14 more rows

Sheet modClassifierValidate (hidden)

Sheet modProv (hidden)

Sheet modHyp (hidden)

Sheet modList00 (hidden)

Sheet modList02 (hidden)

Sheet modList03 (hidden)

Sheet modList04 (hidden)

Sheet modList05 (hidden)

Sheet modList06 (hidden)

Sheet modList07 (hidden)

Sheet modfrmDateChoose (hidden)

Sheet modComm (hidden)

Sheet modThisWorkbook (hidden)

Sheet REESTR_MO (hidden)
A1: № | B1: МР | C1: МО | D1: МО_ОКТМО
A2: 1 | B2: Алтайский | C2: Алтайский | D2: 95605000
A3: 2 | B3: Алтайский | C3: Аршановское | D3: 95605405
A4: 3 | B4: Алтайский | C4: Белоярское | D4: 95605410
A5: 4 | B5: Алтайский | C5: Изыхское | D5: 95605418
A6: 5 | B6: Алтайский | C6: Кировское | D6: 95605420
A7: 6 | B7: Алтайский | C7: Краснопольское | D7: 95605425
A8: 7 | B8: Алтайский | C8: Новомихайловское | D8: 95605430
A9: 8 | B9: Алтайский | C9: Новороссийское | D9: 95605435
A10: 9 | B10: Алтайский | C10: Очурское | D10: 95605440
A11: 10 | B11: Алтайский | C11: Подсинское | D11: 95605445
A12: 11 | B12: Аскизский | C12: Аскизский | D12: 95608000
A13: 12 | B13: Аскизский | C13: Аскизское | D13: 95608405
A14: 13 | B14: Аскизский | C14: Базинское | D14: 95608410
A15: 14 | B15: Аскизский | C15: Балыксинское | D15: 95608409
A16: 15 | B16: Аскизский | C16: Бельтирское | D16: 95608412
A17: 16 | B17: Аскизский | C17: Бирикчульское | D17: 95608413
A18: 17 | B18: Аскизский | C18: Верх-Аскизское | D18: 95608415
A19: 18 | B19: Аскизский | C19: Есинское | D19: 95608420
A20: 19 | B20: Аскизский | C20: Кызласское | D20: 95608430
A21: 20 | B21: Аскизский | C21: Поселок Аскиз | D21: 95608151
A22: 21 | B22: Аскизский | C22: Поселок Бискамжа | D22: 95608165
A23: 22 | B23: Аскизский | C23: Поселок Вершина Теи | D23: 95608169
A24: 23 | B24: Аскизский | C24: Пуланкольское | D24: 95608440
A25: 24 | B25: Аскизский | C25: Усть-Камыштинское | D25: 95608450
A26: 25 | B26: Аскизский | C26: Усть-Чульское | D26: 95608455
A27: 26 | B27: Бейский | C27: Бейский | D27: 95612000
A28: 27 | B28: Бейский | C28: Бейское | D28: 95612405
A29: 28 | B29: Бейский | C29: Большемонокское | D29: 95612410
A30: 29 | B30: Бейский | C30: Бондаревское | D30: 95612415
A31: 30 | B31: Бейский | C31: Кирбинское | D31: 95612425
A32: 31 | B32: Бейский | C32: Куйбышевское | D32: 95612430
A33: 32 | B33: Бейский | C33: Межселенные территории, находящиеся вне границ сельских поселений Бейского района | D33: 95612701
A34: 33 | B34: Бейский | C34: Новоенисейское | D34: 95612440
A35: 34 | B35: Бейский | C35: Новотроицкое | D35: 95612445
A36: 35 | B36: Бейский | C36: Сабинское | D36: 95612455
A37: 36 | B37: Бейский | C37: Табатское | D37: 95612460
A38: 37 | B38: Боградский | C38: Боградский | D38: 95615000
A39: 38 | B39: Боградский | C39: Боградское | D39: 95615410
A40: 39 | B40: Боградский | C40: Большеербинское | D40: 95615415
A41: 40 | B41: Боградский | C41: Бородинское | D41: 95615420
A42: 41 | B42: Боградский | C42: Знаменское | D42: 95615430
A43: 42 | B43: Боградский | C43: Первомайское | D43: 95615440
A44: 43 | B44: Боградский | C44: Пушновское | D44: 95615445
A45: 44 | B45: Боградский | C45: Сарагашское | D45: 95615450
A46: 45 | B46: Боградский | C46: Советско-Хакасское | D46: 95615455
A47: 46 | B47: Боградский | C47: Сонское | D47: 95615460
A48: 47 | B48: Боградский | C48: Троицкое | D48: 95615404
A49: 48 | B49: Орджоникидзевский | C49: Гайдаровское | D49: 95620405
A50: 49 | B50: Орджоникидзевский | C50: Копьёвский поссовет | D50: 95620403
A51: 50 | B51: Орджоникидзевский | C51: Копьёвский сельсовет | D51: 95620420
A52: 51 | B52: Орджоникидзевский | C52: Красноиюсское | D52: 95620425
A53: 52 | B53: Орджоникидзевский | C53: Новомарьясовское | D53: 95620430
A54: 53 | B54: Орджоникидзевский | C54: Орджоникидзевский | D54: 95620000
A55: 54 | B55: Орджоникидзевский | C55: Приисковое | D55: 95620437
A56: 55 | B56: Орджоникидзевский | C56: Саралинское | D56: 95620440
A57: 56 | B57: Орджоникидзевский | C57: Устинкинское | D57: 95620450
A58: 57 | B58: Орджоникидзевский | C58: с. Орджоникидзевское | D58: 95620435
A59: 58 | B59: Таштыпский | C59: Анчулское | D59: 95625405
A60: 59 | B60: Таштыпский | C60: Арбатское | D60: 95625408
A61: 60 | B61: Таштыпский | C61: Большесейское | D61: 95625415
A62: 61 | B62: Таштыпский | C62: Бутрахтинское | D62: 95625420
A63: 62 | B63: Таштыпский | C63: Имекское | D63: 95625422
A64: 63 | B64: Таштыпский | C64: Матурское | D64: 95625425
A65: 64 | B65: Таштыпский | C65: Межселенная территория Таштыпского муниципального района, включающая п Кубайка, п Большой Он, п Малый Анзас | D65: 95625702
A66: 65 | B66: Таштыпский | C66: Нижнесирское | D66: 95625430
A67: 66 | B67: Таштыпский | C67: Таштыпский | D67: 95625000
A68: 67 | B68: Таштыпский | C68: Таштыпское | D68: 95625440
A69: 68 | B69: Усть-Абаканский | C69: Вершино-Биджинское | D69: 95630405
A70: 69 | B70: Усть-Абаканский | C70: Весенненское | D70: 95630410
A71: 70 | B71: Усть-Абаканский | C71: Доможаковское | D71: 95630415
A72: 71 | B72: Усть-Абаканский | C72: Калининское | D72: 95630425
A73: 72 | B73: Усть-Абаканский | C73: Московское | D73: 95630430
A74: 73 | B74: Усть-Абаканский | C74: Опытненское | D74: 95630435
A75: 74 | B75: Усть-Абаканский | C75: Поселок Усть-Абакан | D75: 95630151
A76: 75 | B76: Усть-Абаканский | C76: Райковское | D76: 95630440
A77: 76 | B77: Усть-Абаканский | C77: Расцветовское | D77: 95630445
A78: 77 | B78: Усть-Абаканский | C78: Сапоговское | D78: 95630455
A79: 78 | B79: Усть-Абаканский | C79: Солнечное | D79: 95630460
A80: 79 | B80: Усть-Абаканский | C80: Усть-Абаканский | D80: 95630000
A81: 80 | B81: Усть-Абаканский | C81: Усть-Бюрское | D81: 95630465
A82: 81 | B82: Усть-Абаканский | C82: Чарковское | D82: 95630470
A83: 82 | B83: Ширинский | C83: Беренжакское | D83: 95635405
A84: 83 | B84: Ширинский | C84: Борцовское | D84: 95635410
A85: 84 | B85: Ширинский | C85: Воротское | D85: 95635415
A86: 85 | B86: Ширинский | C86: Ефремкинское | D86: 95635425
A87: 86 | B87: Ширинский | C87: Жемчужненский сельсовет | D87: 95635430
A88: 87 | B88: Ширинский | C88: Коммунаровский сельсовет | D88: 95635401
A89: 88 | B89: Ширинский | C89: Селосонское | D89: 95635435
A90: 89 | B90: Ширинский | C90: Соленоозерное | D90: 95635438
A91: 90 | B91: Ширинский | C91: Спиринское | D91: 95635440
A92: 91 | B92: Ширинский | C92: Туимский сельсовет | D92: 95635403
A93: 92 | B93: Ширинский | C93: Фыркальское | D93: 95635450
A94: 93 | B94: Ширинский | C94: Целинное | D94: 95635455
A95: 94 | B95: Ширинский | C95: Черноозерное | D95: 95635460
A96: 95 | B96: Ширинский | C96: Ширинский | D96: 95635000
A97: 96 | B97: Ширинский | C97: Ширинский сельсовет | D97: 95635404
A98: 97 | B98: Ширинский | C98: село Джирим | D98: 95635420
A99: 98 | B99: город Абаза | C99: город Абаза | D99: 95702000
A100: 99 | B100: город Абакан | C100: город Абакан | D100: 95701000
A101: 100 | B101: город Саяногорск | C101: город Саяногорск | D101: 95708000
A102: 101 | B102: город Сорск | C102: город Сорск | D102: 95709000
A103: 102 | B103: город Черногорск | C103: город Черногорск | D103: 95715000

Sheet modfrmReestrMR (hidden)

Sheet modfrmCheckUpdates (hidden)

Sheet CopyList (hidden)
E12: Наименование поставщика | G12: № п/п | H12: Способ приобретения
H13: Способ приобретения | I13: Реквизиты договора
